Workbook

Sheet 座標入力
B1: 座 標 入 力 | D1: 件名： | E1: 福岡市○○区△△町１丁目地内道路測量
A2: NO | B2: 測点 | C2: Ｘ | D2: Ｙ | E2: 標 高 | F2: 備 考
A3: 1 | I3: シリアル番号 | J3: C04O05K05U00DS1
A4: 2 | I4: 使 用 者 | J4: 座標入力使用者に名前入力
A5: 3
A6: 4
A7: 5
A8: 6
A9: 7
A10: 8
A11: 9
A12: 10
A13: 11
A14: 12
A15: 13
A16: 14
A17: 15
A18: 16
A19: 17
A20: 18
A21: 19
A22: 20
A23: 21
A24: 22
A25: 23
A26: 24
A27: 25
A28: 26
A29: 27
A30: 28
A31: 29
A32: 30
A33: 31
A34: 32
A35: 33
A36: 34
A37: 35
A38: 36
A39: 37
A40: 38
A41: 39
A42: 40
A43: 41
A44: 42
A45: 43
A46: 44
A47: 45
A48: 46
A49: 47
A50: 48
A51: 49
A52: 50
A53: 51
A54: 52
A55: 53
A56: 54
A57: 55
A58: 56
A59: 57
A60: 58
A61: 59
A62: 60
A63: 61
A64: 62
A65: 63
A66: 64
A67: 65
A68: 66
A69: 67
A70: 68
A71: 69
A72: 70
A73: 71
A74: 72
A75: 73
A76: 74
A77: 75
A78: 76
A79: 77
A80: 78
A81: 79
A82: 80
A83: 81
A84: 82
A85: 83
A86: 84
A87: 85
A88: 86
A89: 87
A90: 88
A91: 89
A92: 90
A93: 91
A94: 92
A95: 93
A96: 94
A97: 95
A98: 96
A99: 97
A100: 98
A101: 99
A102: 100
A103: 101
A104: 102
A105: 103
A106: 104
A107: 105
A108: 106
A109: 107
A110: 108
A111: 109
A112: 110
A113: 111
A114: 112
A115: 113
A116: 114
A117: 115
A118: 116
A119: 117
A120: 118
A121: 119
A122: 120
A123: 121
A124: 122
A125: 123
A126: 124
A127: 125
A128: 126
A129: 127
A130: 128
A131: 129
A132: 130
A133: 131
A134: 132
A135: 133
A136: 134
A137: 135
A138: 136
A139: 137
A140: 138
A141: 139
A142: 140
A143: 141
A144: 142
A145: 143
A146: 144
A147: 145
A148: 146
A149: 147
A150: 148
A151: 149
A152: 150
A153: 151
A154: 152
A155: 153
A156: 154
A157: 155
A158: 156
A159: 157
A160: 158
A161: 159
A162: 160
A163: 161
A164: 162
A165: 163
A166: 164
A167: 165
A168: 166
A169: 167
A170: 168
A171: 169
A172: 170
A173: 171
A174: 172
A175: 173
A176: 174
A177: 175
A178: 176
A179: 177
A180: 178
A181: 179
A182: 180
A183: 181
A184: 182
A185: 183
A186: 184
A187: 185
A188: 186
A189: 187
A190: 188
A191: 189
A192: 190
A193: 191
A194: 192
A195: 193
A196: 194
A197: 195
A198: 196
A199: 197
A200: 198
... 202 more rows

Sheet 面積計算
D1: 座標面積計算書 | G1: =IF(I11=0,"",IF(AND(I8<>0,I9=0),"(1/1)",IF(AND(I9<>0,I10=0),"(1/2)","(1/3)"))) -> 
A2: =座標入力!$D$1 -> 件名： | B2: =座標入力!$E$1 -> 福岡市○○区△△町１丁目地内道路測量 | G2: 2016-06-16
A3: 土地の 表 示 | B3: 所 在
B4: 地 目 | D4: 地 積 | F4: 所 有 者
A6: 種 別 | C6: 道路用地拡幅の為 | F6: 計 算 者 | G6: 博多花子
A7: 測 点 | C7: Ｘ | D7: Ｙ | E7: 距 離 | F7: Ｘｎ+1－Ｘｎ-1 | G7: Ｙ(Ｘｎ+1－Ｘｎ-1)
C8: =IF(A8="","",VLOOKUP(A8,座標入力!$B$3:$D$402,2,FALSE)) ->  | D8: =IF(A8="","",VLOOKUP(A8,座標入力!$B$3:$D$402,3,FALSE)) ->  | E8: =IF(OR(C8="",A9=""),"",ROUND(IF(AND(C9="",D9=""),SQRT(($C$8-C8)^2+($D$8-D8)^2),SQRT((C9-C8)^2+(D9-D8)^2)),3)) ->  | F8: =IF(OR(A8="",A9=""),"",IF(AND(I9=0,I10=0),$C$9-INDEX($C$8:C57,MAX(IF($C$8:C57<>"",ROW($C$8:C57)-7)),1), IF(AND(I9<>0,I10=0),$C$9-INDEX($C$64:C119,MAX(IF($C$64:C119<>"",ROW($C$64:C119)-63)),1),$C$9-INDEX($C$126:C181,MAX(IF($C$126:C181<>"",ROW($C$126:C181)-125)),1)))) ->  | G8: =IF(OR(D8="",F8=""),"",D8*F8) ->  | I8: =COUNTA(A8:B57) -> 0
C9: =IF(A9="","",VLOOKUP(A9,座標入力!$B$3:$D$402,2,FALSE)) ->  | D9: =IF(A9="","",VLOOKUP(A9,座標入力!$B$3:$D$402,3,FALSE)) ->  | E9: =IF(C9="","",ROUND(IF(AND(C10="",D10=""),SQRT(($C$8-C9)^2+($D$8-D9)^2),SQRT((C10-C9)^2+(D10-D9)^2)),3)) ->  | F9: =IF(C9="","",IF(C10="",$C$8-C8,C10-C8)) ->  | G9: =IF(OR(D9="",F9=""),"",D9*F9) ->  | I9: =COUNTA(A64:B119) -> 0
C10: =IF(A10="","",VLOOKUP(A10,座標入力!$B$3:$D$402,2,FALSE)) ->  | D10: =IF(A10="","",VLOOKUP(A10,座標入力!$B$3:$D$402,3,FALSE)) ->  | F10: =IF(C10="","",IF(C11="",$C$8-C9,C11-C9)) ->  | I10: =COUNTA(A126:B180) -> 0
C11: =IF(A11="","",VLOOKUP(A11,座標入力!$B$3:$D$402,2,FALSE)) ->  | D11: =IF(A11="","",VLOOKUP(A11,座標入力!$B$3:$D$402,3,FALSE)) ->  | F11: =IF(C11="","",IF(C12="",$C$8-C10,C12-C10)) ->  | I11: =SUM(I8:I10) -> 0
C12: =IF(A12="","",VLOOKUP(A12,座標入力!$B$3:$D$402,2,FALSE)) ->  | D12: =IF(A12="","",VLOOKUP(A12,座標入力!$B$3:$D$402,3,FALSE)) -> 
C13: =IF(A13="","",VLOOKUP(A13,座標入力!$B$3:$D$402,2,FALSE)) ->  | D13: =IF(A13="","",VLOOKUP(A13,座標入力!$B$3:$D$402,3,FALSE)) ->  | G13: =IF(OR(D13="",F13=""),"",D13*F13) -> 
C14: =IF(A14="","",VLOOKUP(A14,座標入力!$B$3:$D$402,2,FALSE)) ->  | D14: =IF(A14="","",VLOOKUP(A14,座標入力!$B$3:$D$402,3,FALSE)) -> 
C15: =IF(A15="","",VLOOKUP(A15,座標入力!$B$3:$D$402,2,FALSE)) ->  | D15: =IF(A15="","",VLOOKUP(A15,座標入力!$B$3:$D$402,3,FALSE)) -> 
C16: =IF(A16="","",VLOOKUP(A16,座標入力!$B$3:$D$402,2,FALSE)) ->  | D16: =IF(A16="","",VLOOKUP(A16,座標入力!$B$3:$D$402,3,FALSE)) -> 
C17: =IF(A17="","",VLOOKUP(A17,座標入力!$B$3:$D$402,2,FALSE)) ->  | D17: =IF(A17="","",VLOOKUP(A17,座標入力!$B$3:$D$402,3,FALSE)) -> 
C18: =IF(A18="","",VLOOKUP(A18,座標入力!$B$3:$D$402,2,FALSE)) ->  | D18: =IF(A18="","",VLOOKUP(A18,座標入力!$B$3:$D$402,3,FALSE)) -> 
C19: =IF(A19="","",VLOOKUP(A19,座標入力!$B$3:$D$402,2,FALSE)) ->  | D19: =IF(A19="","",VLOOKUP(A19,座標入力!$B$3:$D$402,3,FALSE)) -> 
C20: =IF(A20="","",VLOOKUP(A20,座標入力!$B$3:$D$402,2,FALSE)) ->  | D20: =IF(A20="","",VLOOKUP(A20,座標入力!$B$3:$D$402,3,FALSE)) -> 
C21: =IF(A21="","",VLOOKUP(A21,座標入力!$B$3:$D$402,2,FALSE)) ->  | D21: =IF(A21="","",VLOOKUP(A21,座標入力!$B$3:$D$402,3,FALSE)) -> 
C22: =IF(A22="","",VLOOKUP(A22,座標入力!$B$3:$D$402,2,FALSE)) ->  | D22: =IF(A22="","",VLOOKUP(A22,座標入力!$B$3:$D$402,3,FALSE)) -> 
C23: =IF(A23="","",VLOOKUP(A23,座標入力!$B$3:$D$402,2,FALSE)) ->  | D23: =IF(A23="","",VLOOKUP(A23,座標入力!$B$3:$D$402,3,FALSE)) -> 
C24: =IF(A24="","",VLOOKUP(A24,座標入力!$B$3:$D$402,2,FALSE)) ->  | D24: =IF(A24="","",VLOOKUP(A24,座標入力!$B$3:$D$402,3,FALSE)) ->  | G24: =IF(OR(D24="",F24=""),"",D24*F24) -> 
C25: =IF(A25="","",VLOOKUP(A25,座標入力!$B$3:$D$402,2,FALSE)) ->  | D25: =IF(A25="","",VLOOKUP(A25,座標入力!$B$3:$D$402,3,FALSE)) -> 
C26: =IF(A26="","",VLOOKUP(A26,座標入力!$B$3:$D$402,2,FALSE)) ->  | D26: =IF(A26="","",VLOOKUP(A26,座標入力!$B$3:$D$402,3,FALSE)) -> 
C27: =IF(A27="","",VLOOKUP(A27,座標入力!$B$3:$D$402,2,FALSE)) ->  | D27: =IF(A27="","",VLOOKUP(A27,座標入力!$B$3:$D$402,3,FALSE)) -> 
C28: =IF(A28="","",VLOOKUP(A28,座標入力!$B$3:$D$402,2,FALSE)) ->  | D28: =IF(A28="","",VLOOKUP(A28,座標入力!$B$3:$D$402,3,FALSE)) -> 
C29: =IF(A29="","",VLOOKUP(A29,座標入力!$B$3:$D$402,2,FALSE)) ->  | D29: =IF(A29="","",VLOOKUP(A29,座標入力!$B$3:$D$402,3,FALSE)) -> 
C30: =IF(A30="","",VLOOKUP(A30,座標入力!$B$3:$D$402,2,FALSE)) ->  | D30: =IF(A30="","",VLOOKUP(A30,座標入力!$B$3:$D$402,3,FALSE)) -> 
C31: =IF(A31="","",VLOOKUP(A31,座標入力!$B$3:$D$402,2,FALSE)) ->  | D31: =IF(A31="","",VLOOKUP(A31,座標入力!$B$3:$D$402,3,FALSE)) -> 
C32: =IF(A32="","",VLOOKUP(A32,座標入力!$B$3:$D$402,2,FALSE)) ->  | D32: =IF(A32="","",VLOOKUP(A32,座標入力!$B$3:$D$402,3,FALSE)) -> 
C33: =IF(A33="","",VLOOKUP(A33,座標入力!$B$3:$D$402,2,FALSE)) ->  | D33: =IF(A33="","",VLOOKUP(A33,座標入力!$B$3:$D$402,3,FALSE)) -> 
C34: =IF(A34="","",VLOOKUP(A34,座標入力!$B$3:$D$402,2,FALSE)) ->  | D34: =IF(A34="","",VLOOKUP(A34,座標入力!$B$3:$D$402,3,FALSE)) -> 
C35: =IF(A35="","",VLOOKUP(A35,座標入力!$B$3:$D$402,2,FALSE)) ->  | D35: =IF(A35="","",VLOOKUP(A35,座標入力!$B$3:$D$402,3,FALSE)) -> 
C36: =IF(A36="","",VLOOKUP(A36,座標入力!$B$3:$D$402,2,FALSE)) ->  | D36: =IF(A36="","",VLOOKUP(A36,座標入力!$B$3:$D$402,3,FALSE)) -> 
C37: =IF(A37="","",VLOOKUP(A37,座標入力!$B$3:$D$402,2,FALSE)) ->  | D37: =IF(A37="","",VLOOKUP(A37,座標入力!$B$3:$D$402,3,FALSE)) -> 
C38: =IF(A38="","",VLOOKUP(A38,座標入力!$B$3:$D$402,2,FALSE)) ->  | D38: =IF(A38="","",VLOOKUP(A38,座標入力!$B$3:$D$402,3,FALSE)) ->  | E38: =IF(C38="","",ROUND(IF(AND(C39="",D39=""),SQRT(($C$8-C38)^2+($D$8-D38)^2),SQRT((C39-C38)^2+(D39-D38)^2)),3)) -> 
C39: =IF(A39="","",VLOOKUP(A39,座標入力!$B$3:$D$402,2,FALSE)) ->  | D39: =IF(A39="","",VLOOKUP(A39,座標入力!$B$3:$D$402,3,FALSE)) ->  | E39: =IF(C39="","",ROUND(IF(AND(C40="",D40=""),SQRT(($C$8-C39)^2+($D$8-D39)^2),SQRT((C40-C39)^2+(D40-D39)^2)),3)) -> 
C40: =IF(A40="","",VLOOKUP(A40,座標入力!$B$3:$D$402,2,FALSE)) ->  | D40: =IF(A40="","",VLOOKUP(A40,座標入力!$B$3:$D$402,3,FALSE)) -> 
C41: =IF(A41="","",VLOOKUP(A41,座標入力!$B$3:$D$402,2,FALSE)) ->  | D41: =IF(A41="","",VLOOKUP(A41,座標入力!$B$3:$D$402,3,FALSE)) -> 
C42: =IF(A42="","",VLOOKUP(A42,座標入力!$B$3:$D$402,2,FALSE)) ->  | D42: =IF(A42="","",VLOOKUP(A42,座標入力!$B$3:$D$402,3,FALSE)) -> 
C43: =IF(A43="","",VLOOKUP(A43,座標入力!$B$3:$D$402,2,FALSE)) ->  | D43: =IF(A43="","",VLOOKUP(A43,座標入力!$B$3:$D$402,3,FALSE)) -> 
C44: =IF(A44="","",VLOOKUP(A44,座標入力!$B$3:$D$402,2,FALSE)) ->  | D44: =IF(A44="","",VLOOKUP(A44,座標入力!$B$3:$D$402,3,FALSE)) -> 
C45: =IF(A45="","",VLOOKUP(A45,座標入力!$B$3:$D$402,2,FALSE)) ->  | D45: =IF(A45="","",VLOOKUP(A45,座標入力!$B$3:$D$402,3,FALSE)) -> 
C46: =IF(A46="","",VLOOKUP(A46,座標入力!$B$3:$D$402,2,FALSE)) ->  | D46: =IF(A46="","",VLOOKUP(A46,座標入力!$B$3:$D$402,3,FALSE)) -> 
C47: =IF(A47="","",VLOOKUP(A47,座標入力!$B$3:$D$402,2,FALSE)) ->  | D47: =IF(A47="","",VLOOKUP(A47,座標入力!$B$3:$D$402,3,FALSE)) -> 
C48: =IF(A48="","",VLOOKUP(A48,座標入力!$B$3:$D$402,2,FALSE)) ->  | D48: =IF(A48="","",VLOOKUP(A48,座標入力!$B$3:$D$402,3,FALSE)) -> 
C49: =IF(A49="","",VLOOKUP(A49,座標入力!$B$3:$D$402,2,FALSE)) ->  | D49: =IF(A49="","",VLOOKUP(A49,座標入力!$B$3:$D$402,3,FALSE)) -> 
C50: =IF(A50="","",VLOOKUP(A50,座標入力!$B$3:$D$402,2,FALSE)) ->  | D50: =IF(A50="","",VLOOKUP(A50,座標入力!$B$3:$D$402,3,FALSE)) -> 
C51: =IF(A51="","",VLOOKUP(A51,座標入力!$B$3:$D$402,2,FALSE)) ->  | D51: =IF(A51="","",VLOOKUP(A51,座標入力!$B$3:$D$402,3,FALSE)) -> 
C52: =IF(A52="","",VLOOKUP(A52,座標入力!$B$3:$D$402,2,FALSE)) ->  | D52: =IF(A52="","",VLOOKUP(A52,座標入力!$B$3:$D$402,3,FALSE)) -> 
C53: =IF(A53="","",VLOOKUP(A53,座標入力!$B$3:$D$402,2,FALSE)) ->  | D53: =IF(A53="","",VLOOKUP(A53,座標入力!$B$3:$D$402,3,FALSE)) -> 
C54: =IF(A54="","",VLOOKUP(A54,座標入力!$B$3:$D$402,2,FALSE)) ->  | D54: =IF(A54="","",VLOOKUP(A54,座標入力!$B$3:$D$402,3,FALSE)) -> 
C55: =IF(A55="","",VLOOKUP(A55,座標入力!$B$3:$D$402,2,FALSE)) ->  | D55: =IF(A55="","",VLOOKUP(A55,座標入力!$B$3:$D$402,3,FALSE)) ->  | F55: =IF(C55="","",IF(C56="",$C$8-C54,C56-C54)) -> 
C56: =IF(A56="","",VLOOKUP(A56,座標入力!$B$3:$D$402,2,FALSE)) ->  | D56: =IF(A56="","",VLOOKUP(A56,座標入力!$B$3:$D$402,3,FALSE)) -> 
C57: =IF(A57="","",VLOOKUP(A57,座標入力!$B$3:$D$402,2,FALSE)) ->  | D57: =IF(A57="","",VLOOKUP(A57,座標入力!$B$3:$D$402,3,FALSE)) ->  | E57: =IF(C57="","",ROUND(IF(AND(C64="",D64=""),SQRT(($C$8-C57)^2+($D$8-D57)^2),SQRT((C64-C57)^2+(D64-D57)^2)),3)) ->  | F57: =IF(C57="","",IF(C64="",$C$8-C56,C64-C56)) ->  | G57: =IF(OR(D57="",F57=""),"",D57*F57) -> 
A58: 備 考 | F58: 倍 面 積 | G58: =IF(OR(I8=0,I9<>0),"",SUM(G8:G57)) -> 
F59: 弐 除 | G59: =IF(G58="","",ABS(G58/2)) -> 
E60: =IF(G59="","",ROUNDDOWN((G59/3.3057852),2)) ->  | F60: 面 積 | G60: =IF(G1="(1/2)","計算結果は２頁目です",IF(G1="(1/3)","計算結果は３頁目です",(TEXT((I60),"##0.00 ㎡ ")))) ->  | I60: =IF(G59="","",ROUNDDOWN(G59,2)) -> 
A61: =座標入力!J3 -> C04O05K05U00DS1 | G61: =座標入力!J4 -> 座標入力使用者に名前入力
A62: =IF(OR(A64="",$A$6=""),"",$A$6) ->  | C62: =IF(OR(A64="",$C$6=""),"",$C$6) ->  | E62: 座標面積計算簿 | G62: =IF(I9=0,"",IF(AND(I8<>0,I9<>0,I10=0),"(2/2)","(2/3)")) -> 
A63: 測 点 | C63: Ｘ | D63: Ｙ | E63: 距 離 | F63: Ｘｎ+1－Ｘｎ-1 | G63: Ｙ(Ｘｎ+1－Ｘｎ-1)
C64: =IF(A64="","",VLOOKUP(A64,座標入力!$B$3:$D$402,2,FALSE)) ->  | D64: =IF(A64="","",VLOOKUP(A64,座標入力!$B$3:$D$402,3,FALSE)) ->  | E64: =IF(C64="","",ROUND(IF(AND(C65="",D65=""),SQRT(($C$8-C64)^2+($D$8-D64)^2),SQRT((C65-C64)^2+(D65-D64)^2)),3)) ->  | F64: =IF(A64="","",IF(C65="",$C$8-C57,C65-C57)) ->  | G64: =IF(OR(D64="",F64=""),"",D64*F64) -> 
C65: =IF(A65="","",VLOOKUP(A65,座標入力!$B$3:$D$402,2,FALSE)) ->  | D65: =IF(A65="","",VLOOKUP(A65,座標入力!$B$3:$D$402,3,FALSE)) ->  | F65: =IF(C65="","",IF(C66="",$C$8-C64,C66-C64)) -> 
C66: =IF(A66="","",VLOOKUP(A66,座標入力!$B$3:$D$402,2,FALSE)) ->  | D66: =IF(A66="","",VLOOKUP(A66,座標入力!$B$3:$D$402,3,FALSE)) ->  | F66: =IF(C66="","",IF(C67="",$C$8-C65,C67-C65)) -> 
C67: =IF(A67="","",VLOOKUP(A67,座標入力!$B$3:$D$402,2,FALSE)) ->  | D67: =IF(A67="","",VLOOKUP(A67,座標入力!$B$3:$D$402,3,FALSE)) ->  | F67: =IF(C67="","",IF(C68="",$C$8-C66,C68-C66)) -> 
C68: =IF(A68="","",VLOOKUP(A68,座標入力!$B$3:$D$402,2,FALSE)) ->  | D68: =IF(A68="","",VLOOKUP(A68,座標入力!$B$3:$D$402,3,FALSE)) -> 
C69: =IF(A69="","",VLOOKUP(A69,座標入力!$B$3:$D$402,2,FALSE)) ->  | D69: =IF(A69="","",VLOOKUP(A69,座標入力!$B$3:$D$402,3,FALSE)) -> 
C70: =IF(A70="","",VLOOKUP(A70,座標入力!$B$3:$D$402,2,FALSE)) ->  | D70: =IF(A70="","",VLOOKUP(A70,座標入力!$B$3:$D$402,3,FALSE)) -> 
C71: =IF(A71="","",VLOOKUP(A71,座標入力!$B$3:$D$402,2,FALSE)) ->  | D71: =IF(A71="","",VLOOKUP(A71,座標入力!$B$3:$D$402,3,FALSE)) -> 
C72: =IF(A72="","",VLOOKUP(A72,座標入力!$B$3:$D$402,2,FALSE)) ->  | D72: =IF(A72="","",VLOOKUP(A72,座標入力!$B$3:$D$402,3,FALSE)) -> 
C73: =IF(A73="","",VLOOKUP(A73,座標入力!$B$3:$D$402,2,FALSE)) ->  | D73: =IF(A73="","",VLOOKUP(A73,座標入力!$B$3:$D$402,3,FALSE)) -> 
C74: =IF(A74="","",VLOOKUP(A74,座標入力!$B$3:$D$402,2,FALSE)) ->  | D74: =IF(A74="","",VLOOKUP(A74,座標入力!$B$3:$D$402,3,FALSE)) -> 
C75: =IF(A75="","",VLOOKUP(A75,座標入力!$B$3:$D$402,2,FALSE)) ->  | D75: =IF(A75="","",VLOOKUP(A75,座標入力!$B$3:$D$402,3,FALSE)) -> 
C76: =IF(A76="","",VLOOKUP(A76,座標入力!$B$3:$D$402,2,FALSE)) ->  | D76: =IF(A76="","",VLOOKUP(A76,座標入力!$B$3:$D$402,3,FALSE)) -> 
C77: =IF(A77="","",VLOOKUP(A77,座標入力!$B$3:$D$402,2,FALSE)) ->  | D77: =IF(A77="","",VLOOKUP(A77,座標入力!$B$3:$D$402,3,FALSE)) -> 
C78: =IF(A78="","",VLOOKUP(A78,座標入力!$B$3:$D$402,2,FALSE)) ->  | D78: =IF(A78="","",VLOOKUP(A78,座標入力!$B$3:$D$402,3,FALSE)) -> 
C79: =IF(A79="","",VLOOKUP(A79,座標入力!$B$3:$D$402,2,FALSE)) ->  | D79: =IF(A79="","",VLOOKUP(A79,座標入力!$B$3:$D$402,3,FALSE)) -> 
C80: =IF(A80="","",VLOOKUP(A80,座標入力!$B$3:$D$402,2,FALSE)) ->  | D80: =IF(A80="","",VLOOKUP(A80,座標入力!$B$3:$D$402,3,FALSE)) -> 
C81: =IF(A81="","",VLOOKUP(A81,座標入力!$B$3:$D$402,2,FALSE)) ->  | D81: =IF(A81="","",VLOOKUP(A81,座標入力!$B$3:$D$402,3,FALSE)) ->  | F81: =IF(C81="","",IF(C82="",$C$8-C80,C82-C80)) -> 
C82: =IF(A82="","",VLOOKUP(A82,座標入力!$B$3:$D$402,2,FALSE)) ->  | D82: =IF(A82="","",VLOOKUP(A82,座標入力!$B$3:$D$402,3,FALSE)) -> 
C83: =IF(A83="","",VLOOKUP(A83,座標入力!$B$3:$D$402,2,FALSE)) ->  | D83: =IF(A83="","",VLOOKUP(A83,座標入力!$B$3:$D$402,3,FALSE)) -> 
C84: =IF(A84="","",VLOOKUP(A84,座標入力!$B$3:$D$402,2,FALSE)) ->  | D84: =IF(A84="","",VLOOKUP(A84,座標入力!$B$3:$D$402,3,FALSE)) -> 
C85: =IF(A85="","",VLOOKUP(A85,座標入力!$B$3:$D$402,2,FALSE)) ->  | D85: =IF(A85="","",VLOOKUP(A85,座標入力!$B$3:$D$402,3,FALSE)) -> 
C86: =IF(A86="","",VLOOKUP(A86,座標入力!$B$3:$D$402,2,FALSE)) ->  | D86: =IF(A86="","",VLOOKUP(A86,座標入力!$B$3:$D$402,3,FALSE)) -> 
C87: =IF(A87="","",VLOOKUP(A87,座標入力!$B$3:$D$402,2,FALSE)) ->  | D87: =IF(A87="","",VLOOKUP(A87,座標入力!$B$3:$D$402,3,FALSE)) -> 
C88: =IF(A88="","",VLOOKUP(A88,座標入力!$B$3:$D$402,2,FALSE)) ->  | D88: =IF(A88="","",VLOOKUP(A88,座標入力!$B$3:$D$402,3,FALSE)) -> 
C89: =IF(A89="","",VLOOKUP(A89,座標入力!$B$3:$D$402,2,FALSE)) ->  | D89: =IF(A89="","",VLOOKUP(A89,座標入力!$B$3:$D$402,3,FALSE)) -> 
C90: =IF(A90="","",VLOOKUP(A90,座標入力!$B$3:$D$402,2,FALSE)) ->  | D90: =IF(A90="","",VLOOKUP(A90,座標入力!$B$3:$D$402,3,FALSE)) -> 
C91: =IF(A91="","",VLOOKUP(A91,座標入力!$B$3:$D$402,2,FALSE)) ->  | D91: =IF(A91="","",VLOOKUP(A91,座標入力!$B$3:$D$402,3,FALSE)) -> 
C92: =IF(A92="","",VLOOKUP(A92,座標入力!$B$3:$D$402,2,FALSE)) ->  | D92: =IF(A92="","",VLOOKUP(A92,座標入力!$B$3:$D$402,3,FALSE)) -> 
C93: =IF(A93="","",VLOOKUP(A93,座標入力!$B$3:$D$402,2,FALSE)) ->  | D93: =IF(A93="","",VLOOKUP(A93,座標入力!$B$3:$D$402,3,FALSE)) -> 
C94: =IF(A94="","",VLOOKUP(A94,座標入力!$B$3:$D$402,2,FALSE)) ->  | D94: =IF(A94="","",VLOOKUP(A94,座標入力!$B$3:$D$402,3,FALSE)) ->  | E94: =IF(C94="","",ROUND(IF(AND(C95="",D95=""),SQRT(($C$8-C94)^2+($D$8-D94)^2),SQRT((C95-C94)^2+(D95-D94)^2)),3)) -> 
C95: =IF(A95="","",VLOOKUP(A95,座標入力!$B$3:$D$402,2,FALSE)) ->  | D95: =IF(A95="","",VLOOKUP(A95,座標入力!$B$3:$D$402,3,FALSE)) ->  | E95: =IF(C95="","",ROUND(IF(AND(C96="",D96=""),SQRT(($C$8-C95)^2+($D$8-D95)^2),SQRT((C96-C95)^2+(D96-D95)^2)),3)) -> 
C96: =IF(A96="","",VLOOKUP(A96,座標入力!$B$3:$D$402,2,FALSE)) ->  | D96: =IF(A96="","",VLOOKUP(A96,座標入力!$B$3:$D$402,3,FALSE)) -> 
C97: =IF(A97="","",VLOOKUP(A97,座標入力!$B$3:$D$402,2,FALSE)) ->  | D97: =IF(A97="","",VLOOKUP(A97,座標入力!$B$3:$D$402,3,FALSE)) -> 
C98: =IF(A98="","",VLOOKUP(A98,座標入力!$B$3:$D$402,2,FALSE)) ->  | D98: =IF(A98="","",VLOOKUP(A98,座標入力!$B$3:$D$402,3,FALSE)) -> 
C99: =IF(A99="","",VLOOKUP(A99,座標入力!$B$3:$D$402,2,FALSE)) ->  | D99: =IF(A99="","",VLOOKUP(A99,座標入力!$B$3:$D$402,3,FALSE)) -> 
C100: =IF(A100="","",VLOOKUP(A100,座標入力!$B$3:$D$402,2,FALSE)) ->  | D100: =IF(A100="","",VLOOKUP(A100,座標入力!$B$3:$D$402,3,FALSE)) -> 
C101: =IF(A101="","",VLOOKUP(A101,座標入力!$B$3:$D$402,2,FALSE)) ->  | D101: =IF(A101="","",VLOOKUP(A101,座標入力!$B$3:$D$402,3,FALSE)) -> 
C102: =IF(A102="","",VLOOKUP(A102,座標入力!$B$3:$D$402,2,FALSE)) ->  | D102: =IF(A102="","",VLOOKUP(A102,座標入力!$B$3:$D$402,3,FALSE)) -> 
C103: =IF(A103="","",VLOOKUP(A103,座標入力!$B$3:$D$402,2,FALSE)) ->  | D103: =IF(A103="","",VLOOKUP(A103,座標入力!$B$3:$D$402,3,FALSE)) -> 
C104: =IF(A104="","",VLOOKUP(A104,座標入力!$B$3:$D$402,2,FALSE)) ->  | D104: =IF(A104="","",VLOOKUP(A104,座標入力!$B$3:$D$402,3,FALSE)) -> 
C105: =IF(A105="","",VLOOKUP(A105,座標入力!$B$3:$D$402,2,FALSE)) ->  | D105: =IF(A105="","",VLOOKUP(A105,座標入力!$B$3:$D$402,3,FALSE)) -> 
C106: =IF(A106="","",VLOOKUP(A106,座標入力!$B$3:$D$402,2,FALSE)) ->  | D106: =IF(A106="","",VLOOKUP(A106,座標入力!$B$3:$D$402,3,FALSE)) -> 
C107: =IF(A107="","",VLOOKUP(A107,座標入力!$B$3:$D$402,2,FALSE)) ->  | D107: =IF(A107="","",VLOOKUP(A107,座標入力!$B$3:$D$402,3,FALSE)) -> 
C108: =IF(A108="","",VLOOKUP(A108,座標入力!$B$3:$D$402,2,FALSE)) ->  | D108: =IF(A108="","",VLOOKUP(A108,座標入力!$B$3:$D$402,3,FALSE)) -> 
C109: =IF(A109="","",VLOOKUP(A109,座標入力!$B$3:$D$402,2,FALSE)) ->  | D109: =IF(A109="","",VLOOKUP(A109,座標入力!$B$3:$D$402,3,FALSE)) -> 
C110: =IF(A110="","",VLOOKUP(A110,座標入力!$B$3:$D$402,2,FALSE)) ->  | D110: =IF(A110="","",VLOOKUP(A110,座標入力!$B$3:$D$402,3,FALSE)) ->  | E110: =IF(C110="","",ROUND(IF(AND(C111="",D111=""),SQRT(($C$8-C110)^2+($D$8-D110)^2),SQRT((C111-C110)^2+(D111-D110)^2)),3)) -> 
C111: =IF(A111="","",VLOOKUP(A111,座標入力!$B$3:$D$402,2,FALSE)) ->  | D111: =IF(A111="","",VLOOKUP(A111,座標入力!$B$3:$D$402,3,FALSE)) ->  | E111: =IF(C111="","",ROUND(IF(AND(C112="",D112=""),SQRT(($C$8-C111)^2+($D$8-D111)^2),SQRT((C112-C111)^2+(D112-D111)^2)),3)) -> 
C112: =IF(A112="","",VLOOKUP(A112,座標入力!$B$3:$D$402,2,FALSE)) ->  | D112: =IF(A112="","",VLOOKUP(A112,座標入力!$B$3:$D$402,3,FALSE)) -> 
C113: =IF(A113="","",VLOOKUP(A113,座標入力!$B$3:$D$402,2,FALSE)) ->  | D113: =IF(A113="","",VLOOKUP(A113,座標入力!$B$3:$D$402,3,FALSE)) -> 
C114: =IF(A114="","",VLOOKUP(A114,座標入力!$B$3:$D$402,2,FALSE)) ->  | D114: =IF(A114="","",VLOOKUP(A114,座標入力!$B$3:$D$402,3,FALSE)) -> 
C115: =IF(A115="","",VLOOKUP(A115,座標入力!$B$3:$D$402,2,FALSE)) ->  | D115: =IF(A115="","",VLOOKUP(A115,座標入力!$B$3:$D$402,3,FALSE)) -> 
C116: =IF(A116="","",VLOOKUP(A116,座標入力!$B$3:$D$402,2,FALSE)) ->  | D116: =IF(A116="","",VLOOKUP(A116,座標入力!$B$3:$D$402,3,FALSE)) -> 
C117: =IF(A117="","",VLOOKUP(A117,座標入力!$B$3:$D$402,2,FALSE)) ->  | D117: =IF(A117="","",VLOOKUP(A117,座標入力!$B$3:$D$402,3,FALSE)) ->  | F117: =IF(C117="","",IF(C118="",$C$8-C116,C118-C116)) -> 
C118: =IF(A118="","",VLOOKUP(A118,座標入力!$B$3:$D$402,2,FALSE)) ->  | D118: =IF(A118="","",VLOOKUP(A118,座標入力!$B$3:$D$402,3,FALSE)) -> 
C119: =IF(A119="","",VLOOKUP(A119,座標入力!$B$3:$D$402,2,FALSE)) ->  | D119: =IF(A119="","",VLOOKUP(A119,座標入力!$B$3:$D$402,3,FALSE)) ->  | E119: =IF(C119="","",ROUND(IF(AND(C126="",D126=""),SQRT(($C$8-C119)^2+($D$8-D119)^2),SQRT((C126-C119)^2+(D126-D119)^2)),3)) ->  | F119: =IF(C119="","",IF(C126="",$C$8-C118,C126-C118)) ->  | G119: =IF(OR(D119="",F119=""),"",D119*F119) -> 
A120: 備 考 | F120: 倍 面 積 | G120: =IF(OR(I9=0,I10<>0),"",SUM(G8:G57,G64:G119)) -> 
F121: 弐 除 | G121: =IF(G120="","",ABS(G120/2)) -> 
E122: =IF(G121="","",ROUNDDOWN((G121/3.3057852),2)) ->  | F122: 面 積 | G122: =IF(AND(I122="",G1="(1/3)"),"計算結果は３頁目です",TEXT((I122),"##0.00 ㎡ ")) ->  | I122: =IF(G121="","",ROUNDDOWN(G121,2)) -> 
A123: =A61 -> C04O05K05U00DS1 | G123: =座標入力!$J$4 -> 座標入力使用者に名前入力
A124: =IF(OR(A126="",$A$6=""),"",$A$6) ->  | C124: =IF(OR(A126="",$C$6=""),"",$C$6) ->  | E124: 座標面積計算簿 | G124: =IF(I10=0,"","(3/3)") -> 
A125: 測 点 | C125: Ｘ | D125: Ｙ | E125: 距 離 | F125: Ｘｎ+1－Ｘｎ-1 | G125: Ｙ(Ｘｎ+1－Ｘｎ-1)
C126: =IF(A126="","",VLOOKUP(A126,座標入力!$B$3:$D$402,2,FALSE)) ->  | D126: =IF(A126="","",VLOOKUP(A126,座標入力!$B$3:$D$402,3,FALSE)) ->  | E126: =IF(C126="","",ROUND(IF(AND(C127="",D127=""),SQRT(($C$8-C126)^2+($D$8-D126)^2),SQRT((C127-C126)^2+(D127-D126)^2)),3)) ->  | F126: =IF(A126="","",IF(C127="",$C$8-C119,C127-C119)) ->  | G126: =IF(OR(D126="",F126=""),"",D126*F126) -> 
C127: =IF(A127="","",VLOOKUP(A127,座標入力!$B$3:$D$402,2,FALSE)) ->  | D127: =IF(A127="","",VLOOKUP(A127,座標入力!$B$3:$D$402,3,FALSE)) ->  | E127: =IF(C127="","",ROUND(IF(AND(C128="",D128=""),SQRT(($C$8-C127)^2+($D$8-D127)^2),SQRT((C128-C127)^2+(D128-D127)^2)),3)) ->  | F127: =IF(C127="","",IF(C128="",$C$8-C126,C128-C126)) ->  | G127: =IF(OR(D127="",F127=""),"",D127*F127) -> 
C128: =IF(A128="","",VLOOKUP(A128,座標入力!$B$3:$D$402,2,FALSE)) ->  | D128: =IF(A128="","",VLOOKUP(A128,座標入力!$B$3:$D$402,3,FALSE)) ->  | F128: =IF(C128="","",IF(C129="",$C$8-C127,C129-C127)) -> 
C129: =IF(A129="","",VLOOKUP(A129,座標入力!$B$3:$D$402,2,FALSE)) ->  | D129: =IF(A129="","",VLOOKUP(A129,座標入力!$B$3:$D$402,3,FALSE)) -> 
C130: =IF(A130="","",VLOOKUP(A130,座標入力!$B$3:$D$402,2,FALSE)) ->  | D130: =IF(A130="","",VLOOKUP(A130,座標入力!$B$3:$D$402,3,FALSE)) -> 
C131: =IF(A131="","",VLOOKUP(A131,座標入力!$B$3:$D$402,2,FALSE)) ->  | D131: =IF(A131="","",VLOOKUP(A131,座標入力!$B$3:$D$402,3,FALSE)) -> 
C132: =IF(A132="","",VLOOKUP(A132,座標入力!$B$3:$D$402,2,FALSE)) ->  | D132: =IF(A132="","",VLOOKUP(A132,座標入力!$B$3:$D$402,3,FALSE)) -> 
C133: =IF(A133="","",VLOOKUP(A133,座標入力!$B$3:$D$402,2,FALSE)) ->  | D133: =IF(A133="","",VLOOKUP(A133,座標入力!$B$3:$D$402,3,FALSE)) -> 
C134: =IF(A134="","",VLOOKUP(A134,座標入力!$B$3:$D$402,2,FALSE)) ->  | D134: =IF(A134="","",VLOOKUP(A134,座標入力!$B$3:$D$402,3,FALSE)) -> 
C135: =IF(A135="","",VLOOKUP(A135,座標入力!$B$3:$D$402,2,FALSE)) ->  | D135: =IF(A135="","",VLOOKUP(A135,座標入力!$B$3:$D$402,3,FALSE)) -> 
C136: =IF(A136="","",VLOOKUP(A136,座標入力!$B$3:$D$402,2,FALSE)) ->  | D136: =IF(A136="","",VLOOKUP(A136,座標入力!$B$3:$D$402,3,FALSE)) -> 
C137: =IF(A137="","",VLOOKUP(A137,座標入力!$B$3:$D$402,2,FALSE)) ->  | D137: =IF(A137="","",VLOOKUP(A137,座標入力!$B$3:$D$402,3,FALSE)) -> 
C138: =IF(A138="","",VLOOKUP(A138,座標入力!$B$3:$D$402,2,FALSE)) ->  | D138: =IF(A138="","",VLOOKUP(A138,座標入力!$B$3:$D$402,3,FALSE)) -> 
C139: =IF(A139="","",VLOOKUP(A139,座標入力!$B$3:$D$402,2,FALSE)) ->  | D139: =IF(A139="","",VLOOKUP(A139,座標入力!$B$3:$D$402,3,FALSE)) -> 
C140: =IF(A140="","",VLOOKUP(A140,座標入力!$B$3:$D$402,2,FALSE)) ->  | D140: =IF(A140="","",VLOOKUP(A140,座標入力!$B$3:$D$402,3,FALSE)) -> 
C141: =IF(A141="","",VLOOKUP(A141,座標入力!$B$3:$D$402,2,FALSE)) ->  | D141: =IF(A141="","",VLOOKUP(A141,座標入力!$B$3:$D$402,3,FALSE)) -> 
C142: =IF(A142="","",VLOOKUP(A142,座標入力!$B$3:$D$402,2,FALSE)) ->  | D142: =IF(A142="","",VLOOKUP(A142,座標入力!$B$3:$D$402,3,FALSE)) -> 
C143: =IF(A143="","",VLOOKUP(A143,座標入力!$B$3:$D$402,2,FALSE)) ->  | D143: =IF(A143="","",VLOOKUP(A143,座標入力!$B$3:$D$402,3,FALSE)) -> 
C144: =IF(A144="","",VLOOKUP(A144,座標入力!$B$3:$D$402,2,FALSE)) ->  | D144: =IF(A144="","",VLOOKUP(A144,座標入力!$B$3:$D$402,3,FALSE)) -> 
C145: =IF(A145="","",VLOOKUP(A145,座標入力!$B$3:$D$402,2,FALSE)) ->  | D145: =IF(A145="","",VLOOKUP(A145,座標入力!$B$3:$D$402,3,FALSE)) -> 
C146: =IF(A146="","",VLOOKUP(A146,座標入力!$B$3:$D$402,2,FALSE)) ->  | D146: =IF(A146="","",VLOOKUP(A146,座標入力!$B$3:$D$402,3,FALSE)) -> 
C147: =IF(A147="","",VLOOKUP(A147,座標入力!$B$3:$D$402,2,FALSE)) ->  | D147: =IF(A147="","",VLOOKUP(A147,座標入力!$B$3:$D$402,3,FALSE)) -> 
C148: =IF(A148="","",VLOOKUP(A148,座標入力!$B$3:$D$402,2,FALSE)) ->  | D148: =IF(A148="","",VLOOKUP(A148,座標入力!$B$3:$D$402,3,FALSE)) -> 
C149: =IF(A149="","",VLOOKUP(A149,座標入力!$B$3:$D$402,2,FALSE)) ->  | D149: =IF(A149="","",VLOOKUP(A149,座標入力!$B$3:$D$402,3,FALSE)) -> 
C150: =IF(A150="","",VLOOKUP(A150,座標入力!$B$3:$D$402,2,FALSE)) ->  | D150: =IF(A150="","",VLOOKUP(A150,座標入力!$B$3:$D$402,3,FALSE)) -> 
C151: =IF(A151="","",VLOOKUP(A151,座標入力!$B$3:$D$402,2,FALSE)) ->  | D151: =IF(A151="","",VLOOKUP(A151,座標入力!$B$3:$D$402,3,FALSE)) -> 
C152: =IF(A152="","",VLOOKUP(A152,座標入力!$B$3:$D$402,2,FALSE)) ->  | D152: =IF(A152="","",VLOOKUP(A152,座標入力!$B$3:$D$402,3,FALSE)) -> 
C153: =IF(A153="","",VLOOKUP(A153,座標入力!$B$3:$D$402,2,FALSE)) ->  | D153: =IF(A153="","",VLOOKUP(A153,座標入力!$B$3:$D$402,3,FALSE)) -> 
C154: =IF(A154="","",VLOOKUP(A154,座標入力!$B$3:$D$402,2,FALSE)) ->  | D154: =IF(A154="","",VLOOKUP(A154,座標入力!$B$3:$D$402,3,FALSE)) -> 
C155: =IF(A155="","",VLOOKUP(A155,座標入力!$B$3:$D$402,2,FALSE)) ->  | D155: =IF(A155="","",VLOOKUP(A155,座標入力!$B$3:$D$402,3,FALSE)) -> 
C156: =IF(A156="","",VLOOKUP(A156,座標入力!$B$3:$D$402,2,FALSE)) ->  | D156: =IF(A156="","",VLOOKUP(A156,座標入力!$B$3:$D$402,3,FALSE)) -> 
C157: =IF(A157="","",VLOOKUP(A157,座標入力!$B$3:$D$402,2,FALSE)) ->  | D157: =IF(A157="","",VLOOKUP(A157,座標入力!$B$3:$D$402,3,FALSE)) -> 
C158: =IF(A158="","",VLOOKUP(A158,座標入力!$B$3:$D$402,2,FALSE)) ->  | D158: =IF(A158="","",VLOOKUP(A158,座標入力!$B$3:$D$402,3,FALSE)) -> 
C159: =IF(A159="","",VLOOKUP(A159,座標入力!$B$3:$D$402,2,FALSE)) ->  | D159: =IF(A159="","",VLOOKUP(A159,座標入力!$B$3:$D$402,3,FALSE)) -> 
C160: =IF(A160="","",VLOOKUP(A160,座標入力!$B$3:$D$402,2,FALSE)) ->  | D160: =IF(A160="","",VLOOKUP(A160,座標入力!$B$3:$D$402,3,FALSE)) -> 
C161: =IF(A161="","",VLOOKUP(A161,座標入力!$B$3:$D$402,2,FALSE)) ->  | D161: =IF(A161="","",VLOOKUP(A161,座標入力!$B$3:$D$402,3,FALSE)) -> 
C162: =IF(A162="","",VLOOKUP(A162,座標入力!$B$3:$D$402,2,FALSE)) ->  | D162: =IF(A162="","",VLOOKUP(A162,座標入力!$B$3:$D$402,3,FALSE)) -> 
C163: =IF(A163="","",VLOOKUP(A163,座標入力!$B$3:$D$402,2,FALSE)) ->  | D163: =IF(A163="","",VLOOKUP(A163,座標入力!$B$3:$D$402,3,FALSE)) -> 
C164: =IF(A164="","",VLOOKUP(A164,座標入力!$B$3:$D$402,2,FALSE)) ->  | D164: =IF(A164="","",VLOOKUP(A164,座標入力!$B$3:$D$402,3,FALSE)) -> 
C165: =IF(A165="","",VLOOKUP(A165,座標入力!$B$3:$D$402,2,FALSE)) ->  | D165: =IF(A165="","",VLOOKUP(A165,座標入力!$B$3:$D$402,3,FALSE)) -> 
C166: =IF(A166="","",VLOOKUP(A166,座標入力!$B$3:$D$402,2,FALSE)) ->  | D166: =IF(A166="","",VLOOKUP(A166,座標入力!$B$3:$D$402,3,FALSE)) -> 
C167: =IF(A167="","",VLOOKUP(A167,座標入力!$B$3:$D$402,2,FALSE)) ->  | D167: =IF(A167="","",VLOOKUP(A167,座標入力!$B$3:$D$402,3,FALSE)) -> 
C168: =IF(A168="","",VLOOKUP(A168,座標入力!$B$3:$D$402,2,FALSE)) ->  | D168: =IF(A168="","",VLOOKUP(A168,座標入力!$B$3:$D$402,3,FALSE)) ->  | E168: =IF(C168="","",ROUND(IF(AND(C169="",D169=""),SQRT(($C$8-C168)^2+($D$8-D168)^2),SQRT((C169-C168)^2+(D169-D168)^2)),3)) -> 
C169: =IF(A169="","",VLOOKUP(A169,座標入力!$B$3:$D$402,2,FALSE)) ->  | D169: =IF(A169="","",VLOOKUP(A169,座標入力!$B$3:$D$402,3,FALSE)) -> 
C170: =IF(A170="","",VLOOKUP(A170,座標入力!$B$3:$D$402,2,FALSE)) ->  | D170: =IF(A170="","",VLOOKUP(A170,座標入力!$B$3:$D$402,3,FALSE)) -> 
C171: =IF(A171="","",VLOOKUP(A171,座標入力!$B$3:$D$402,2,FALSE)) ->  | D171: =IF(A171="","",VLOOKUP(A171,座標入力!$B$3:$D$402,3,FALSE)) -> 
C172: =IF(A172="","",VLOOKUP(A172,座標入力!$B$3:$D$402,2,FALSE)) ->  | D172: =IF(A172="","",VLOOKUP(A172,座標入力!$B$3:$D$402,3,FALSE)) -> 
C173: =IF(A173="","",VLOOKUP(A173,座標入力!$B$3:$D$402,2,FALSE)) ->  | D173: =IF(A173="","",VLOOKUP(A173,座標入力!$B$3:$D$402,3,FALSE)) -> 
C174: =IF(A174="","",VLOOKUP(A174,座標入力!$B$3:$D$402,2,FALSE)) ->  | D174: =IF(A174="","",VLOOKUP(A174,座標入力!$B$3:$D$402,3,FALSE)) -> 
C175: =IF(A175="","",VLOOKUP(A175,座標入力!$B$3:$D$402,2,FALSE)) ->  | D175: =IF(A175="","",VLOOKUP(A175,座標入力!$B$3:$D$402,3,FALSE)) -> 
C176: =IF(A176="","",VLOOKUP(A176,座標入力!$B$3:$D$402,2,FALSE)) ->  | D176: =IF(A176="","",VLOOKUP(A176,座標入力!$B$3:$D$402,3,FALSE)) -> 
C177: =IF(A177="","",VLOOKUP(A177,座標入力!$B$3:$D$402,2,FALSE)) ->  | D177: =IF(A177="","",VLOOKUP(A177,座標入力!$B$3:$D$402,3,FALSE)) -> 
C178: =IF(A178="","",VLOOKUP(A178,座標入力!$B$3:$D$402,2,FALSE)) ->  | D178: =IF(A178="","",VLOOKUP(A178,座標入力!$B$3:$D$402,3,FALSE)) -> 
C179: =IF(A179="","",VLOOKUP(A179,座標入力!$B$3:$D$402,2,FALSE)) ->  | D179: =IF(A179="","",VLOOKUP(A179,座標入力!$B$3:$D$402,3,FALSE)) -> 
C180: =IF(A180="","",VLOOKUP(A180,座標入力!$B$3:$D$402,2,FALSE)) ->  | D180: =IF(A180="","",VLOOKUP(A180,座標入力!$B$3:$D$402,3,FALSE)) -> 
E181: =IF(C181="","",ROUND(SQRT(($C$8-C181)^2+($D$8-D181)^2),3)) ->  | F181: =IF(C181="","",$C$8-C180) -> 
A182: 備 考 | F182: 倍 面 積 | G182: =IF(I10=0,"",SUM(G8:G57,G64:G119,G126:G181)) -> 
F183: 弐 除 | G183: =IF(G182="","",ABS(G182/2)) -> 
E184: =IF(G183="","",ROUNDDOWN((G183/3.3057852),2)) ->  | F184: 面 積 | G184: =IF(I184="","",TEXT((I184),"##0.00㎡ ")) ->  | I184: =IF(G183="","",ROUNDDOWN(G183,2)) -> 
A185: =A61 -> C04O05K05U00DS1 | G185: =座標入力!$J$4 -> 座標入力使用者に名前入力

Sheet 2点間距離
A1: ２点間距離計算書
A2: =面積計算!A2 -> 件名： | B2: =面積計算!B2 -> 福岡市○○区△△町１丁目地内道路測量
A3: 2003-05-06 | D3: 博多花子
A4: 測点１ | B4: 測点２ | C4: ２点間距離 | D4: 備 考 | F4: 測1のX | G4: 測1のY | H4: 測2のX | I4: 測2のY | J4: Ｘの差 | K4: Ｙの差
C5: =IF(OR(A5="",B5=""),"",SQRT(J5+K5)) ->  | F5: =IF(A5="","",VLOOKUP(A5,座標入力!$B$3:$D$402,2,FALSE)) ->  | G5: =IF(A5="","",VLOOKUP(A5,座標入力!$B$3:$D$402,3,FALSE)) ->  | H5: =IF(B5="","",VLOOKUP(B5,座標入力!$B$3:$D$402,2,FALSE)) ->  | I5: =IF(B5="","",VLOOKUP(B5,座標入力!$B$3:$D$402,3,FALSE)) ->  | J5: =IF(OR(F5="",H5=""),"",(F5-H5)^2) ->  | K5: =IF(OR(G5="",I5=""),"",(G5-I5)^2) -> 
C6: =IF(OR(A6="",B6=""),"",SQRT(J6+K6)) ->  | F6: =IF(A6="","",VLOOKUP(A6,座標入力!$B$3:$D$402,2,FALSE)) ->  | G6: =IF(A6="","",VLOOKUP(A6,座標入力!$B$3:$D$402,3,FALSE)) ->  | H6: =IF(B6="","",VLOOKUP(B6,座標入力!$B$3:$D$402,2,FALSE)) ->  | I6: =IF(B6="","",VLOOKUP(B6,座標入力!$B$3:$D$402,3,FALSE)) ->  | J6: =IF(OR(F6="",H6=""),"",(F6-H6)^2) ->  | K6: =IF(OR(G6="",I6=""),"",(G6-I6)^2) -> 
F7: =IF(A7="","",VLOOKUP(A7,座標入力!$B$3:$D$402,2,FALSE)) ->  | G7: =IF(A7="","",VLOOKUP(A7,座標入力!$B$3:$D$402,3,FALSE)) ->  | H7: =IF(B7="","",VLOOKUP(B7,座標入力!$B$3:$D$402,2,FALSE)) ->  | I7: =IF(B7="","",VLOOKUP(B7,座標入力!$B$3:$D$402,3,FALSE)) -> 
F8: =IF(A8="","",VLOOKUP(A8,座標入力!$B$3:$D$402,2,FALSE)) ->  | G8: =IF(A8="","",VLOOKUP(A8,座標入力!$B$3:$D$402,3,FALSE)) ->  | H8: =IF(B8="","",VLOOKUP(B8,座標入力!$B$3:$D$402,2,FALSE)) ->  | I8: =IF(B8="","",VLOOKUP(B8,座標入力!$B$3:$D$402,3,FALSE)) -> 
F9: =IF(A9="","",VLOOKUP(A9,座標入力!$B$3:$D$402,2,FALSE)) ->  | G9: =IF(A9="","",VLOOKUP(A9,座標入力!$B$3:$D$402,3,FALSE)) ->  | H9: =IF(B9="","",VLOOKUP(B9,座標入力!$B$3:$D$402,2,FALSE)) ->  | I9: =IF(B9="","",VLOOKUP(B9,座標入力!$B$3:$D$402,3,FALSE)) -> 
F10: =IF(A10="","",VLOOKUP(A10,座標入力!$B$3:$D$402,2,FALSE)) ->  | G10: =IF(A10="","",VLOOKUP(A10,座標入力!$B$3:$D$402,3,FALSE)) ->  | H10: =IF(B10="","",VLOOKUP(B10,座標入力!$B$3:$D$402,2,FALSE)) ->  | I10: =IF(B10="","",VLOOKUP(B10,座標入力!$B$3:$D$402,3,FALSE)) -> 
F11: =IF(A11="","",VLOOKUP(A11,座標入力!$B$3:$D$402,2,FALSE)) ->  | G11: =IF(A11="","",VLOOKUP(A11,座標入力!$B$3:$D$402,3,FALSE)) ->  | H11: =IF(B11="","",VLOOKUP(B11,座標入力!$B$3:$D$402,2,FALSE)) ->  | I11: =IF(B11="","",VLOOKUP(B11,座標入力!$B$3:$D$402,3,FALSE)) -> 
F12: =IF(A12="","",VLOOKUP(A12,座標入力!$B$3:$D$402,2,FALSE)) ->  | G12: =IF(A12="","",VLOOKUP(A12,座標入力!$B$3:$D$402,3,FALSE)) ->  | H12: =IF(B12="","",VLOOKUP(B12,座標入力!$B$3:$D$402,2,FALSE)) ->  | I12: =IF(B12="","",VLOOKUP(B12,座標入力!$B$3:$D$402,3,FALSE)) -> 
F13: =IF(A13="","",VLOOKUP(A13,座標入力!$B$3:$D$402,2,FALSE)) ->  | G13: =IF(A13="","",VLOOKUP(A13,座標入力!$B$3:$D$402,3,FALSE)) ->  | H13: =IF(B13="","",VLOOKUP(B13,座標入力!$B$3:$D$402,2,FALSE)) ->  | I13: =IF(B13="","",VLOOKUP(B13,座標入力!$B$3:$D$402,3,FALSE)) -> 
F14: =IF(A14="","",VLOOKUP(A14,座標入力!$B$3:$D$402,2,FALSE)) ->  | G14: =IF(A14="","",VLOOKUP(A14,座標入力!$B$3:$D$402,3,FALSE)) ->  | H14: =IF(B14="","",VLOOKUP(B14,座標入力!$B$3:$D$402,2,FALSE)) ->  | I14: =IF(B14="","",VLOOKUP(B14,座標入力!$B$3:$D$402,3,FALSE)) -> 
F15: =IF(A15="","",VLOOKUP(A15,座標入力!$B$3:$D$402,2,FALSE)) ->  | G15: =IF(A15="","",VLOOKUP(A15,座標入力!$B$3:$D$402,3,FALSE)) ->  | H15: =IF(B15="","",VLOOKUP(B15,座標入力!$B$3:$D$402,2,FALSE)) ->  | I15: =IF(B15="","",VLOOKUP(B15,座標入力!$B$3:$D$402,3,FALSE)) -> 
F16: =IF(A16="","",VLOOKUP(A16,座標入力!$B$3:$D$402,2,FALSE)) ->  | G16: =IF(A16="","",VLOOKUP(A16,座標入力!$B$3:$D$402,3,FALSE)) ->  | H16: =IF(B16="","",VLOOKUP(B16,座標入力!$B$3:$D$402,2,FALSE)) ->  | I16: =IF(B16="","",VLOOKUP(B16,座標入力!$B$3:$D$402,3,FALSE)) -> 
F17: =IF(A17="","",VLOOKUP(A17,座標入力!$B$3:$D$402,2,FALSE)) ->  | G17: =IF(A17="","",VLOOKUP(A17,座標入力!$B$3:$D$402,3,FALSE)) ->  | H17: =IF(B17="","",VLOOKUP(B17,座標入力!$B$3:$D$402,2,FALSE)) ->  | I17: =IF(B17="","",VLOOKUP(B17,座標入力!$B$3:$D$402,3,FALSE)) -> 
F18: =IF(A18="","",VLOOKUP(A18,座標入力!$B$3:$D$402,2,FALSE)) ->  | G18: =IF(A18="","",VLOOKUP(A18,座標入力!$B$3:$D$402,3,FALSE)) ->  | H18: =IF(B18="","",VLOOKUP(B18,座標入力!$B$3:$D$402,2,FALSE)) ->  | I18: =IF(B18="","",VLOOKUP(B18,座標入力!$B$3:$D$402,3,FALSE)) -> 
F19: =IF(A19="","",VLOOKUP(A19,座標入力!$B$3:$D$402,2,FALSE)) ->  | G19: =IF(A19="","",VLOOKUP(A19,座標入力!$B$3:$D$402,3,FALSE)) ->  | H19: =IF(B19="","",VLOOKUP(B19,座標入力!$B$3:$D$402,2,FALSE)) ->  | I19: =IF(B19="","",VLOOKUP(B19,座標入力!$B$3:$D$402,3,FALSE)) -> 
C20: =IF(OR(A20="",B20=""),"",SQRT(J20+K20)) ->  | F20: =IF(A20="","",VLOOKUP(A20,座標入力!$B$3:$D$402,2,FALSE)) ->  | G20: =IF(A20="","",VLOOKUP(A20,座標入力!$B$3:$D$402,3,FALSE)) ->  | H20: =IF(B20="","",VLOOKUP(B20,座標入力!$B$3:$D$402,2,FALSE)) ->  | I20: =IF(B20="","",VLOOKUP(B20,座標入力!$B$3:$D$402,3,FALSE)) ->  | J20: =IF(OR(F20="",H20=""),"",(F20-H20)^2) ->  | K20: =IF(OR(G20="",I20=""),"",(G20-I20)^2) -> 
F21: =IF(A21="","",VLOOKUP(A21,座標入力!$B$3:$D$402,2,FALSE)) ->  | G21: =IF(A21="","",VLOOKUP(A21,座標入力!$B$3:$D$402,3,FALSE)) ->  | H21: =IF(B21="","",VLOOKUP(B21,座標入力!$B$3:$D$402,2,FALSE)) ->  | I21: =IF(B21="","",VLOOKUP(B21,座標入力!$B$3:$D$402,3,FALSE)) -> 
F22: =IF(A22="","",VLOOKUP(A22,座標入力!$B$3:$D$402,2,FALSE)) ->  | G22: =IF(A22="","",VLOOKUP(A22,座標入力!$B$3:$D$402,3,FALSE)) ->  | H22: =IF(B22="","",VLOOKUP(B22,座標入力!$B$3:$D$402,2,FALSE)) ->  | I22: =IF(B22="","",VLOOKUP(B22,座標入力!$B$3:$D$402,3,FALSE)) -> 
F23: =IF(A23="","",VLOOKUP(A23,座標入力!$B$3:$D$402,2,FALSE)) ->  | G23: =IF(A23="","",VLOOKUP(A23,座標入力!$B$3:$D$402,3,FALSE)) ->  | H23: =IF(B23="","",VLOOKUP(B23,座標入力!$B$3:$D$402,2,FALSE)) ->  | I23: =IF(B23="","",VLOOKUP(B23,座標入力!$B$3:$D$402,3,FALSE)) -> 
F24: =IF(A24="","",VLOOKUP(A24,座標入力!$B$3:$D$402,2,FALSE)) ->  | G24: =IF(A24="","",VLOOKUP(A24,座標入力!$B$3:$D$402,3,FALSE)) ->  | H24: =IF(B24="","",VLOOKUP(B24,座標入力!$B$3:$D$402,2,FALSE)) ->  | I24: =IF(B24="","",VLOOKUP(B24,座標入力!$B$3:$D$402,3,FALSE)) -> 
F25: =IF(A25="","",VLOOKUP(A25,座標入力!$B$3:$D$402,2,FALSE)) ->  | G25: =IF(A25="","",VLOOKUP(A25,座標入力!$B$3:$D$402,3,FALSE)) ->  | H25: =IF(B25="","",VLOOKUP(B25,座標入力!$B$3:$D$402,2,FALSE)) ->  | I25: =IF(B25="","",VLOOKUP(B25,座標入力!$B$3:$D$402,3,FALSE)) -> 
F26: =IF(A26="","",VLOOKUP(A26,座標入力!$B$3:$D$402,2,FALSE)) ->  | G26: =IF(A26="","",VLOOKUP(A26,座標入力!$B$3:$D$402,3,FALSE)) ->  | H26: =IF(B26="","",VLOOKUP(B26,座標入力!$B$3:$D$402,2,FALSE)) ->  | I26: =IF(B26="","",VLOOKUP(B26,座標入力!$B$3:$D$402,3,FALSE)) -> 
F27: =IF(A27="","",VLOOKUP(A27,座標入力!$B$3:$D$402,2,FALSE)) ->  | G27: =IF(A27="","",VLOOKUP(A27,座標入力!$B$3:$D$402,3,FALSE)) ->  | H27: =IF(B27="","",VLOOKUP(B27,座標入力!$B$3:$D$402,2,FALSE)) ->  | I27: =IF(B27="","",VLOOKUP(B27,座標入力!$B$3:$D$402,3,FALSE)) -> 
F28: =IF(A28="","",VLOOKUP(A28,座標入力!$B$3:$D$402,2,FALSE)) ->  | G28: =IF(A28="","",VLOOKUP(A28,座標入力!$B$3:$D$402,3,FALSE)) ->  | H28: =IF(B28="","",VLOOKUP(B28,座標入力!$B$3:$D$402,2,FALSE)) ->  | I28: =IF(B28="","",VLOOKUP(B28,座標入力!$B$3:$D$402,3,FALSE)) -> 
F29: =IF(A29="","",VLOOKUP(A29,座標入力!$B$3:$D$402,2,FALSE)) ->  | G29: =IF(A29="","",VLOOKUP(A29,座標入力!$B$3:$D$402,3,FALSE)) ->  | H29: =IF(B29="","",VLOOKUP(B29,座標入力!$B$3:$D$402,2,FALSE)) ->  | I29: =IF(B29="","",VLOOKUP(B29,座標入力!$B$3:$D$402,3,FALSE)) -> 
F30: =IF(A30="","",VLOOKUP(A30,座標入力!$B$3:$D$402,2,FALSE)) ->  | G30: =IF(A30="","",VLOOKUP(A30,座標入力!$B$3:$D$402,3,FALSE)) ->  | H30: =IF(B30="","",VLOOKUP(B30,座標入力!$B$3:$D$402,2,FALSE)) ->  | I30: =IF(B30="","",VLOOKUP(B30,座標入力!$B$3:$D$402,3,FALSE)) -> 
F31: =IF(A31="","",VLOOKUP(A31,座標入力!$B$3:$D$402,2,FALSE)) ->  | G31: =IF(A31="","",VLOOKUP(A31,座標入力!$B$3:$D$402,3,FALSE)) ->  | H31: =IF(B31="","",VLOOKUP(B31,座標入力!$B$3:$D$402,2,FALSE)) ->  | I31: =IF(B31="","",VLOOKUP(B31,座標入力!$B$3:$D$402,3,FALSE)) -> 
F32: =IF(A32="","",VLOOKUP(A32,座標入力!$B$3:$D$402,2,FALSE)) ->  | G32: =IF(A32="","",VLOOKUP(A32,座標入力!$B$3:$D$402,3,FALSE)) ->  | H32: =IF(B32="","",VLOOKUP(B32,座標入力!$B$3:$D$402,2,FALSE)) ->  | I32: =IF(B32="","",VLOOKUP(B32,座標入力!$B$3:$D$402,3,FALSE)) -> 
F33: =IF(A33="","",VLOOKUP(A33,座標入力!$B$3:$D$402,2,FALSE)) ->  | G33: =IF(A33="","",VLOOKUP(A33,座標入力!$B$3:$D$402,3,FALSE)) ->  | H33: =IF(B33="","",VLOOKUP(B33,座標入力!$B$3:$D$402,2,FALSE)) ->  | I33: =IF(B33="","",VLOOKUP(B33,座標入力!$B$3:$D$402,3,FALSE)) -> 
F34: =IF(A34="","",VLOOKUP(A34,座標入力!$B$3:$D$402,2,FALSE)) ->  | G34: =IF(A34="","",VLOOKUP(A34,座標入力!$B$3:$D$402,3,FALSE)) ->  | H34: =IF(B34="","",VLOOKUP(B34,座標入力!$B$3:$D$402,2,FALSE)) ->  | I34: =IF(B34="","",VLOOKUP(B34,座標入力!$B$3:$D$402,3,FALSE)) -> 
F35: =IF(A35="","",VLOOKUP(A35,座標入力!$B$3:$D$402,2,FALSE)) ->  | G35: =IF(A35="","",VLOOKUP(A35,座標入力!$B$3:$D$402,3,FALSE)) ->  | H35: =IF(B35="","",VLOOKUP(B35,座標入力!$B$3:$D$402,2,FALSE)) ->  | I35: =IF(B35="","",VLOOKUP(B35,座標入力!$B$3:$D$402,3,FALSE)) -> 
F36: =IF(A36="","",VLOOKUP(A36,座標入力!$B$3:$D$402,2,FALSE)) ->  | G36: =IF(A36="","",VLOOKUP(A36,座標入力!$B$3:$D$402,3,FALSE)) ->  | H36: =IF(B36="","",VLOOKUP(B36,座標入力!$B$3:$D$402,2,FALSE)) ->  | I36: =IF(B36="","",VLOOKUP(B36,座標入力!$B$3:$D$402,3,FALSE)) -> 
F37: =IF(A37="","",VLOOKUP(A37,座標入力!$B$3:$D$402,2,FALSE)) ->  | G37: =IF(A37="","",VLOOKUP(A37,座標入力!$B$3:$D$402,3,FALSE)) ->  | H37: =IF(B37="","",VLOOKUP(B37,座標入力!$B$3:$D$402,2,FALSE)) ->  | I37: =IF(B37="","",VLOOKUP(B37,座標入力!$B$3:$D$402,3,FALSE)) -> 
F38: =IF(A38="","",VLOOKUP(A38,座標入力!$B$3:$D$402,2,FALSE)) ->  | G38: =IF(A38="","",VLOOKUP(A38,座標入力!$B$3:$D$402,3,FALSE)) ->  | H38: =IF(B38="","",VLOOKUP(B38,座標入力!$B$3:$D$402,2,FALSE)) ->  | I38: =IF(B38="","",VLOOKUP(B38,座標入力!$B$3:$D$402,3,FALSE)) -> 
F39: =IF(A39="","",VLOOKUP(A39,座標入力!$B$3:$D$402,2,FALSE)) ->  | G39: =IF(A39="","",VLOOKUP(A39,座標入力!$B$3:$D$402,3,FALSE)) ->  | H39: =IF(B39="","",VLOOKUP(B39,座標入力!$B$3:$D$402,2,FALSE)) ->  | I39: =IF(B39="","",VLOOKUP(B39,座標入力!$B$3:$D$402,3,FALSE)) -> 
F40: =IF(A40="","",VLOOKUP(A40,座標入力!$B$3:$D$402,2,FALSE)) ->  | G40: =IF(A40="","",VLOOKUP(A40,座標入力!$B$3:$D$402,3,FALSE)) ->  | H40: =IF(B40="","",VLOOKUP(B40,座標入力!$B$3:$D$402,2,FALSE)) ->  | I40: =IF(B40="","",VLOOKUP(B40,座標入力!$B$3:$D$402,3,FALSE)) -> 
F41: =IF(A41="","",VLOOKUP(A41,座標入力!$B$3:$D$402,2,FALSE)) ->  | G41: =IF(A41="","",VLOOKUP(A41,座標入力!$B$3:$D$402,3,FALSE)) ->  | H41: =IF(B41="","",VLOOKUP(B41,座標入力!$B$3:$D$402,2,FALSE)) ->  | I41: =IF(B41="","",VLOOKUP(B41,座標入力!$B$3:$D$402,3,FALSE)) ->  | K41: =IF(OR(G41="",I41=""),"",(G41-I41)^2) -> 
F42: =IF(A42="","",VLOOKUP(A42,座標入力!$B$3:$D$402,2,FALSE)) ->  | G42: =IF(A42="","",VLOOKUP(A42,座標入力!$B$3:$D$402,3,FALSE)) ->  | H42: =IF(B42="","",VLOOKUP(B42,座標入力!$B$3:$D$402,2,FALSE)) ->  | I42: =IF(B42="","",VLOOKUP(B42,座標入力!$B$3:$D$402,3,FALSE)) -> 
F43: =IF(A43="","",VLOOKUP(A43,座標入力!$B$3:$D$402,2,FALSE)) ->  | G43: =IF(A43="","",VLOOKUP(A43,座標入力!$B$3:$D$402,3,FALSE)) ->  | H43: =IF(B43="","",VLOOKUP(B43,座標入力!$B$3:$D$402,2,FALSE)) ->  | I43: =IF(B43="","",VLOOKUP(B43,座標入力!$B$3:$D$402,3,FALSE)) -> 
F44: =IF(A44="","",VLOOKUP(A44,座標入力!$B$3:$D$402,2,FALSE)) ->  | G44: =IF(A44="","",VLOOKUP(A44,座標入力!$B$3:$D$402,3,FALSE)) ->  | H44: =IF(B44="","",VLOOKUP(B44,座標入力!$B$3:$D$402,2,FALSE)) ->  | I44: =IF(B44="","",VLOOKUP(B44,座標入力!$B$3:$D$402,3,FALSE)) -> 
F45: =IF(A45="","",VLOOKUP(A45,座標入力!$B$3:$D$402,2,FALSE)) ->  | G45: =IF(A45="","",VLOOKUP(A45,座標入力!$B$3:$D$402,3,FALSE)) ->  | H45: =IF(B45="","",VLOOKUP(B45,座標入力!$B$3:$D$402,2,FALSE)) ->  | I45: =IF(B45="","",VLOOKUP(B45,座標入力!$B$3:$D$402,3,FALSE)) -> 
F46: =IF(A46="","",VLOOKUP(A46,座標入力!$B$3:$D$402,2,FALSE)) ->  | G46: =IF(A46="","",VLOOKUP(A46,座標入力!$B$3:$D$402,3,FALSE)) ->  | H46: =IF(B46="","",VLOOKUP(B46,座標入力!$B$3:$D$402,2,FALSE)) ->  | I46: =IF(B46="","",VLOOKUP(B46,座標入力!$B$3:$D$402,3,FALSE)) ->  | J46: =IF(OR(F46="",H46=""),"",(F46-H46)^2) ->  | K46: =IF(OR(G46="",I46=""),"",(G46-I46)^2) -> 
F47: =IF(A47="","",VLOOKUP(A47,座標入力!$B$3:$D$402,2,FALSE)) ->  | G47: =IF(A47="","",VLOOKUP(A47,座標入力!$B$3:$D$402,3,FALSE)) ->  | H47: =IF(B47="","",VLOOKUP(B47,座標入力!$B$3:$D$402,2,FALSE)) ->  | I47: =IF(B47="","",VLOOKUP(B47,座標入力!$B$3:$D$402,3,FALSE)) -> 
F48: =IF(A48="","",VLOOKUP(A48,座標入力!$B$3:$D$402,2,FALSE)) ->  | G48: =IF(A48="","",VLOOKUP(A48,座標入力!$B$3:$D$402,3,FALSE)) ->  | H48: =IF(B48="","",VLOOKUP(B48,座標入力!$B$3:$D$402,2,FALSE)) ->  | I48: =IF(B48="","",VLOOKUP(B48,座標入力!$B$3:$D$402,3,FALSE)) -> 
F49: =IF(A49="","",VLOOKUP(A49,座標入力!$B$3:$D$402,2,FALSE)) ->  | G49: =IF(A49="","",VLOOKUP(A49,座標入力!$B$3:$D$402,3,FALSE)) ->  | H49: =IF(B49="","",VLOOKUP(B49,座標入力!$B$3:$D$402,2,FALSE)) ->  | I49: =IF(B49="","",VLOOKUP(B49,座標入力!$B$3:$D$402,3,FALSE)) -> 
F50: =IF(A50="","",VLOOKUP(A50,座標入力!$B$3:$D$402,2,FALSE)) ->  | G50: =IF(A50="","",VLOOKUP(A50,座標入力!$B$3:$D$402,3,FALSE)) ->  | H50: =IF(B50="","",VLOOKUP(B50,座標入力!$B$3:$D$402,2,FALSE)) ->  | I50: =IF(B50="","",VLOOKUP(B50,座標入力!$B$3:$D$402,3,FALSE)) -> 
F51: =IF(A51="","",VLOOKUP(A51,座標入力!$B$3:$D$402,2,FALSE)) ->  | G51: =IF(A51="","",VLOOKUP(A51,座標入力!$B$3:$D$402,3,FALSE)) ->  | H51: =IF(B51="","",VLOOKUP(B51,座標入力!$B$3:$D$402,2,FALSE)) ->  | I51: =IF(B51="","",VLOOKUP(B51,座標入力!$B$3:$D$402,3,FALSE)) -> 
F52: =IF(A52="","",VLOOKUP(A52,座標入力!$B$3:$D$402,2,FALSE)) ->  | G52: =IF(A52="","",VLOOKUP(A52,座標入力!$B$3:$D$402,3,FALSE)) ->  | H52: =IF(B52="","",VLOOKUP(B52,座標入力!$B$3:$D$402,2,FALSE)) ->  | I52: =IF(B52="","",VLOOKUP(B52,座標入力!$B$3:$D$402,3,FALSE)) ->  | J52: =IF(OR(F52="",H52=""),"",(F52-H52)^2) -> 
C53: =IF(OR(A53="",B53=""),"",SQRT(J53+K53)) ->  | F53: =IF(A53="","",VLOOKUP(A53,座標入力!$B$3:$D$402,2,FALSE)) ->  | G53: =IF(A53="","",VLOOKUP(A53,座標入力!$B$3:$D$402,3,FALSE)) ->  | H53: =IF(B53="","",VLOOKUP(B53,座標入力!$B$3:$D$402,2,FALSE)) ->  | I53: =IF(B53="","",VLOOKUP(B53,座標入力!$B$3:$D$402,3,FALSE)) -> 
C54: =IF(OR(A54="",B54=""),"",SQRT(J54+K54)) ->  | F54: =IF(A54="","",VLOOKUP(A54,座標入力!$B$3:$D$402,2,FALSE)) ->  | G54: =IF(A54="","",VLOOKUP(A54,座標入力!$B$3:$D$402,3,FALSE)) ->  | H54: =IF(B54="","",VLOOKUP(B54,座標入力!$B$3:$D$402,2,FALSE)) ->  | I54: =IF(B54="","",VLOOKUP(B54,座標入力!$B$3:$D$402,3,FALSE)) -> 
A55: =面積計算!A61 -> C04O05K05U00DS1 | D55: =面積計算!G61 -> 座標入力使用者に名前入力

Sheet 逆計算
A1: 復元(放射逆トラバース)計算書
A2: =面積計算!A2 -> 件名： | B2: =面積計算!B2 -> 福岡市○○区△△町１丁目地内道路測量
A3: 2003-05-20 | E3: 博多花子
A4: 測 点 | C4: 方 向 角 | D4: 夾 角 | E4: 距 離 | G4: Ｘ | H4: Ｙ
A5: 器械点 | C5: - | D5: - | E5: - | G5: =IF(B5="","",VLOOKUP(B5,座標入力!$B$3:$D$402,2,FALSE)) ->  | H5: =IF(B5="","",VLOOKUP(B5,座標入力!$B$3:$D$402,3,FALSE)) ->  | I5: ⊿Ｘ | J5: ⊿Ｙ | K5: 角度1 | L5: 角度2 | M5: 度 | P5: 分 | S5: 秒 | V5: 度 | Y5: 分 | AB5: 分
A6: 零方向 | C6: =TEXT(M6,"#,##0-")&TEXT(P6,"#00-")&TEXT(S6,"#00") ->  | D6: =TEXT(V6,"#,##0-")&TEXT(Y6,"#00-")&TEXT(AB6,"#00") ->  | E6: =IF(OR(I6="",J6=""),"",SQRT(I6^2+J6^2)) ->  | G6: =IF(B6="","",VLOOKUP(B6,座標入力!$B$3:$D$402,2,FALSE)) ->  | H6: =IF(B6="","",VLOOKUP(B6,座標入力!$B$3:$D$402,3,FALSE)) ->  | I6: =IF(OR($G$5="",G6=""),"",G6-$G$5) ->  | J6: =IF(OR($H$5="",H6=""),"",H6-$H$5) ->  | K6: =IF(OR(I6="",J6=""),"",ATAN2(I6,J6)*(180/PI())) ->  | L6: =IF(K6="","",(IF(K6<0,360+K6,K6))) ->  | M6: =IF(L6="","",TRUNC(L6)) ->  | N6: =IF(M6="","",L6-M6) ->  | O6: =IF(N6="","",N6*60) ->  | P6: =IF(O6="","",TRUNC(O6)) ->  | Q6: =IF(P6="","",O6-P6) ->  | R6: =IF(Q6="","",Q6*60) ->  | S6: =IF(R6="","",TRUNC(R6)) ->  | T6: =IF(L6="","",L6-$L$6) ->  | U6: =IF(T6="","",T6) ->  | V6: =IF(U6="","",TRUNC(U6)) ->  | W6: =IF(V6="","",U6-V6) ->  | X6: =IF(W6="","",W6*60) ->  | Y6: =IF(X6="","",TRUNC(X6)) ->  | Z6: =IF(Y6="","",X6-Y6) ->  | AA6: =IF(Z6="","",Z6*60) ->  | AB6: =IF(AA6="","",TRUNC(AA6)) -> 
A7: 復元 1 | D7: =TEXT(V7,"#,##0-")&TEXT(Y7,"#00-")&TEXT(AB7,"#00") ->  | E7: =IF(OR(I7="",J7=""),"",SQRT(I7^2+J7^2)) ->  | G7: =IF(B7="","",VLOOKUP(B7,座標入力!$B$3:$D$402,2,FALSE)) ->  | H7: =IF(B7="","",VLOOKUP(B7,座標入力!$B$3:$D$402,3,FALSE)) ->  | I7: =IF(OR($G$5="",G7=""),"",G7-$G$5) ->  | J7: =IF(OR($H$5="",H7=""),"",H7-$H$5) ->  | K7: =IF(OR(I7="",J7=""),"",ATAN2(I7,J7)*(180/PI())) ->  | L7: =IF(K7="","",(IF(K7<0,360+K7,K7))) ->  | M7: =IF(L7="","",TRUNC(L7)) ->  | N7: =IF(M7="","",L7-M7) ->  | O7: =IF(N7="","",N7*60) ->  | P7: =IF(O7="","",TRUNC(O7)) ->  | Q7: =IF(P7="","",O7-P7) ->  | R7: =IF(Q7="","",Q7*60) ->  | S7: =IF(R7="","",TRUNC(R7)) ->  | U7: =IF(T7="","",IF(T7<0,(360+T7),T7)) ->  | V7: =IF(U7="","",TRUNC(U7)) ->  | W7: =IF(V7="","",U7-V7) ->  | X7: =IF(W7="","",W7*60) ->  | Y7: =IF(X7="","",TRUNC(X7)) ->  | Z7: =IF(Y7="","",X7-Y7) ->  | AA7: =IF(Z7="","",Z7*60) ->  | AB7: =IF(AA7="","",TRUNC(AA7)) -> 
A8: 復元 2 | G8: =IF(B8="","",VLOOKUP(B8,座標入力!$B$3:$D$402,2,FALSE)) ->  | H8: =IF(B8="","",VLOOKUP(B8,座標入力!$B$3:$D$402,3,FALSE)) ->  | U8: =IF(T8="","",IF(T8<0,(360+T8),T8)) ->  | V8: =IF(U8="","",TRUNC(U8)) ->  | W8: =IF(V8="","",U8-V8) ->  | X8: =IF(W8="","",W8*60) ->  | Y8: =IF(X8="","",TRUNC(X8)) ->  | AA8: =IF(Z8="","",Z8*60) -> 
A9: 復元 3 | G9: =IF(B9="","",VLOOKUP(B9,座標入力!$B$3:$D$402,2,FALSE)) ->  | H9: =IF(B9="","",VLOOKUP(B9,座標入力!$B$3:$D$402,3,FALSE)) -> 
A10: 復元 4 | G10: =IF(B10="","",VLOOKUP(B10,座標入力!$B$3:$D$402,2,FALSE)) ->  | H10: =IF(B10="","",VLOOKUP(B10,座標入力!$B$3:$D$402,3,FALSE)) -> 
A11: 復元 5 | G11: =IF(B11="","",VLOOKUP(B11,座標入力!$B$3:$D$402,2,FALSE)) ->  | H11: =IF(B11="","",VLOOKUP(B11,座標入力!$B$3:$D$402,3,FALSE)) -> 
A12: 復元 6 | G12: =IF(B12="","",VLOOKUP(B12,座標入力!$B$3:$D$402,2,FALSE)) ->  | H12: =IF(B12="","",VLOOKUP(B12,座標入力!$B$3:$D$402,3,FALSE)) ->  | Q12: =IF(P12="","",O12-P12) -> 
A13: 復元 7 | G13: =IF(B13="","",VLOOKUP(B13,座標入力!$B$3:$D$402,2,FALSE)) ->  | H13: =IF(B13="","",VLOOKUP(B13,座標入力!$B$3:$D$402,3,FALSE)) -> 
A14: 復元 8 | G14: =IF(B14="","",VLOOKUP(B14,座標入力!$B$3:$D$402,2,FALSE)) ->  | H14: =IF(B14="","",VLOOKUP(B14,座標入力!$B$3:$D$402,3,FALSE)) -> 
A15: 復元 9 | G15: =IF(B15="","",VLOOKUP(B15,座標入力!$B$3:$D$402,2,FALSE)) ->  | H15: =IF(B15="","",VLOOKUP(B15,座標入力!$B$3:$D$402,3,FALSE)) -> 
A16: 復元10 | G16: =IF(B16="","",VLOOKUP(B16,座標入力!$B$3:$D$402,2,FALSE)) ->  | H16: =IF(B16="","",VLOOKUP(B16,座標入力!$B$3:$D$402,3,FALSE)) -> 
B17: 注意：秒(角度)の端数は切捨て。
A18: 測 点 | C18: 方 向 角 | D18: 夾 角 | E18: 距 離
A19: 器械点 | C19: - | D19: - | E19: - | G19: =IF(B19="","",VLOOKUP(B19,座標入力!$B$3:$D$402,2,FALSE)) ->  | H19: =IF(B19="","",VLOOKUP(B19,座標入力!$B$3:$D$402,3,FALSE)) ->  | I19: ⊿Ｘ | J19: ⊿Ｙ | K19: 角度1
A20: 零方向 | C20: =TEXT(M20,"#,##0-")&TEXT(P20,"#00-")&TEXT(S20,"#00") ->  | D20: =TEXT(V20,"#,##0-")&TEXT(Y20,"#00-")&TEXT(AB20,"#00") ->  | E20: =IF(OR(I20="",J20=""),"",SQRT(I20^2+J20^2)) ->  | G20: =IF(B20="","",VLOOKUP(B20,座標入力!$B$3:$D$402,2,FALSE)) ->  | H20: =IF(B20="","",VLOOKUP(B20,座標入力!$B$3:$D$402,3,FALSE)) ->  | I20: =IF(OR($G$19="",G20=""),"",G20-$G$19) ->  | J20: =IF(OR($H$19="",H20=""),"",H20-$H$19) ->  | K20: =IF(OR(I20="",J20=""),"",ATAN2(I20,J20)*(180/PI())) ->  | L20: =IF(K20="","",(IF(K20<0,360+K20,K20))) ->  | M20: =IF(L20="","",TRUNC(L20)) ->  | N20: =IF(M20="","",L20-M20) ->  | O20: =IF(N20="","",N20*60) ->  | P20: =IF(O20="","",TRUNC(O20)) ->  | Q20: =IF(P20="","",O20-P20) ->  | R20: =IF(Q20="","",Q20*60) ->  | S20: =IF(R20="","",TRUNC(R20)) ->  | T20: =IF(L20="","",L20-$L$20) ->  | U20: =IF(T20="","",T20) ->  | V20: =IF(U20="","",TRUNC(U20)) ->  | W20: =IF(V20="","",U20-V20) ->  | X20: =IF(W20="","",W20*60) ->  | Y20: =IF(X20="","",TRUNC(X20)) ->  | Z20: =IF(Y20="","",X20-Y20) ->  | AA20: =IF(Z20="","",Z20*60) ->  | AB20: =IF(AA20="","",TRUNC(AA20)) -> 
A21: 復元 1 | D21: =TEXT(V21,"#,##0-")&TEXT(Y21,"#00-")&TEXT(AB21,"#00") ->  | E21: =IF(OR(I21="",J21=""),"",SQRT(I21^2+J21^2)) ->  | G21: =IF(B21="","",VLOOKUP(B21,座標入力!$B$3:$D$402,2,FALSE)) ->  | H21: =IF(B21="","",VLOOKUP(B21,座標入力!$B$3:$D$402,3,FALSE)) ->  | I21: =IF(OR($G$19="",G21=""),"",G21-$G$19) ->  | J21: =IF(OR($H$19="",H21=""),"",H21-$H$19) ->  | K21: =IF(OR(I21="",J21=""),"",ATAN2(I21,J21)*(180/PI())) ->  | L21: =IF(K21="","",(IF(K21<0,360+K21,K21))) ->  | M21: =IF(L21="","",TRUNC(L21)) ->  | N21: =IF(M21="","",L21-M21) ->  | O21: =IF(N21="","",N21*60) ->  | P21: =IF(O21="","",TRUNC(O21)) ->  | Q21: =IF(P21="","",O21-P21) ->  | R21: =IF(Q21="","",Q21*60) ->  | S21: =IF(R21="","",TRUNC(R21)) ->  | T21: =IF(L21="","",L21-$L$20) ->  | U21: =IF(T21="","",IF(T21<0,(360+T21),T21)) ->  | V21: =IF(U21="","",TRUNC(U21)) ->  | W21: =IF(V21="","",U21-V21) ->  | X21: =IF(W21="","",W21*60) ->  | Y21: =IF(X21="","",TRUNC(X21)) ->  | AA21: =IF(Z21="","",Z21*60) ->  | AB21: =IF(AA21="","",TRUNC(AA21)) -> 
A22: 復元 2 | G22: =IF(B22="","",VLOOKUP(B22,座標入力!$B$3:$D$402,2,FALSE)) ->  | H22: =IF(B22="","",VLOOKUP(B22,座標入力!$B$3:$D$402,3,FALSE)) ->  | L22: =IF(K22="","",(IF(K22<0,360+K22,K22))) ->  | U22: =IF(T22="","",IF(T22<0,(360+T22),T22)) ->  | V22: =IF(U22="","",TRUNC(U22)) ->  | W22: =IF(V22="","",U22-V22) ->  | X22: =IF(W22="","",W22*60) ->  | Y22: =IF(X22="","",TRUNC(X22)) ->  | AA22: =IF(Z22="","",Z22*60) -> 
A23: 復元 3 | G23: =IF(B23="","",VLOOKUP(B23,座標入力!$B$3:$D$402,2,FALSE)) ->  | H23: =IF(B23="","",VLOOKUP(B23,座標入力!$B$3:$D$402,3,FALSE)) -> 
A24: 復元 4 | G24: =IF(B24="","",VLOOKUP(B24,座標入力!$B$3:$D$402,2,FALSE)) ->  | H24: =IF(B24="","",VLOOKUP(B24,座標入力!$B$3:$D$402,3,FALSE)) -> 
A25: 復元 5 | G25: =IF(B25="","",VLOOKUP(B25,座標入力!$B$3:$D$402,2,FALSE)) ->  | H25: =IF(B25="","",VLOOKUP(B25,座標入力!$B$3:$D$402,3,FALSE)) -> 
A26: 復元 6 | G26: =IF(B26="","",VLOOKUP(B26,座標入力!$B$3:$D$402,2,FALSE)) ->  | H26: =IF(B26="","",VLOOKUP(B26,座標入力!$B$3:$D$402,3,FALSE)) -> 
A27: 復元 7 | G27: =IF(B27="","",VLOOKUP(B27,座標入力!$B$3:$D$402,2,FALSE)) ->  | H27: =IF(B27="","",VLOOKUP(B27,座標入力!$B$3:$D$402,3,FALSE)) -> 
A28: 復元 8 | G28: =IF(B28="","",VLOOKUP(B28,座標入力!$B$3:$D$402,2,FALSE)) ->  | H28: =IF(B28="","",VLOOKUP(B28,座標入力!$B$3:$D$402,3,FALSE)) -> 
A29: 復元 9 | G29: =IF(B29="","",VLOOKUP(B29,座標入力!$B$3:$D$402,2,FALSE)) ->  | H29: =IF(B29="","",VLOOKUP(B29,座標入力!$B$3:$D$402,3,FALSE)) ->  | I29: =IF(OR($G$19="",G29=""),"",G29-$G$19) -> 
A30: 復元10 | G30: =IF(B30="","",VLOOKUP(B30,座標入力!$B$3:$D$402,2,FALSE)) ->  | H30: =IF(B30="","",VLOOKUP(B30,座標入力!$B$3:$D$402,3,FALSE)) -> 
B31: 注意：秒(角度)の端数は切捨て。
A32: 測 点 | C32: 方 向 角 | D32: 夾 角 | E32: 距 離
A33: 器械点 | B33: CR33 | C33: - | D33: - | E33: - | G33: =IF(B33="","",VLOOKUP(B33,座標入力!$B$3:$D$402,2,FALSE)) ->  | H33: =IF(B33="","",VLOOKUP(B33,座標入力!$B$3:$D$402,3,FALSE)) ->  | I33: ⊿Ｘ | J33: ⊿Ｙ | K33: 角度1
A34: 零方向 | B34: CL18 | C34: =TEXT(M34,"#,##0-")&TEXT(P34,"#00-")&TEXT(S34,"#00") ->  | D34: =TEXT(V34,"#,##0-")&TEXT(Y34,"#00-")&TEXT(AB34,"#00") ->  | E34: =IF(OR(I34="",J34=""),"",SQRT(I34^2+J34^2)) ->  | G34: =IF(B34="","",VLOOKUP(B34,座標入力!$B$3:$D$402,2,FALSE)) ->  | H34: =IF(B34="","",VLOOKUP(B34,座標入力!$B$3:$D$402,3,FALSE)) ->  | I34: =IF(OR($G$33="",G34=""),"",G34-$G$33) ->  | J34: =IF(OR($H$33="",H34=""),"",H34-$H$33) ->  | K34: =IF(OR(I34="",J34=""),"",ATAN2(I34,J34)*(180/PI())) ->  | L34: =IF(K34="","",(IF(K34<0,360+K34,K34))) ->  | M34: =IF(L34="","",TRUNC(L34)) ->  | N34: =IF(M34="","",L34-M34) ->  | O34: =IF(N34="","",N34*60) ->  | P34: =IF(O34="","",TRUNC(O34)) ->  | Q34: =IF(P34="","",O34-P34) ->  | R34: =IF(Q34="","",Q34*60) ->  | S34: =IF(R34="","",TRUNC(R34)) ->  | T34: =IF(L34="","",L34-$L$34) ->  | U34: =IF(T34="","",T34) ->  | V34: =IF(U34="","",TRUNC(U34)) ->  | W34: =IF(V34="","",U34-V34) ->  | X34: =IF(W34="","",W34*60) ->  | Y34: =IF(X34="","",TRUNC(X34)) ->  | Z34: =IF(Y34="","",X34-Y34) ->  | AA34: =IF(Z34="","",Z34*60) ->  | AB34: =IF(AA34="","",TRUNC(AA34)) -> 
A35: 復元 1 | B35: CR11 | C35: =TEXT(M35,"#,##0-")&TEXT(P35,"#00-")&TEXT(S35,"#00") ->  | D35: =TEXT(V35,"#,##0-")&TEXT(Y35,"#00-")&TEXT(AB35,"#00") ->  | E35: =IF(OR(I35="",J35=""),"",SQRT(I35^2+J35^2)) ->  | G35: =IF(B35="","",VLOOKUP(B35,座標入力!$B$3:$D$402,2,FALSE)) ->  | H35: =IF(B35="","",VLOOKUP(B35,座標入力!$B$3:$D$402,3,FALSE)) ->  | I35: =IF(OR($G$33="",G35=""),"",G35-$G$33) ->  | J35: =IF(OR($H$33="",H35=""),"",H35-$H$33) ->  | K35: =IF(OR(I35="",J35=""),"",ATAN2(I35,J35)*(180/PI())) ->  | L35: =IF(K35="","",(IF(K35<0,360+K35,K35))) ->  | M35: =IF(L35="","",TRUNC(L35)) ->  | N35: =IF(M35="","",L35-M35) ->  | O35: =IF(N35="","",N35*60) ->  | P35: =IF(O35="","",TRUNC(O35)) ->  | Q35: =IF(P35="","",O35-P35) ->  | R35: =IF(Q35="","",Q35*60) ->  | S35: =IF(R35="","",TRUNC(R35)) ->  | T35: =IF(L35="","",L35-$L$34) ->  | U35: =IF(T35="","",IF(T35<0,(360+T35),T35)) ->  | V35: =IF(U35="","",TRUNC(U35)) ->  | W35: =IF(V35="","",U35-V35) ->  | X35: =IF(W35="","",W35*60) ->  | Y35: =IF(X35="","",TRUNC(X35)) ->  | AA35: =IF(Z35="","",Z35*60) ->  | AB35: =IF(AA35="","",TRUNC(AA35)) -> 
A36: 復元 2 | B36: CR12 | D36: =TEXT(V36,"#,##0-")&TEXT(Y36,"#00-")&TEXT(AB36,"#00") ->  | G36: =IF(B36="","",VLOOKUP(B36,座標入力!$B$3:$D$402,2,FALSE)) ->  | H36: =IF(B36="","",VLOOKUP(B36,座標入力!$B$3:$D$402,3,FALSE)) ->  | J36: =IF(OR($H$33="",H36=""),"",H36-$H$33) ->  | U36: =IF(T36="","",IF(T36<0,(360+T36),T36)) ->  | V36: =IF(U36="","",TRUNC(U36)) ->  | W36: =IF(V36="","",U36-V36) ->  | X36: =IF(W36="","",W36*60) ->  | Y36: =IF(X36="","",TRUNC(X36)) ->  | AA36: =IF(Z36="","",Z36*60) -> 
A37: 復元 3 | B37: CR13 | G37: =IF(B37="","",VLOOKUP(B37,座標入力!$B$3:$D$402,2,FALSE)) ->  | H37: =IF(B37="","",VLOOKUP(B37,座標入力!$B$3:$D$402,3,FALSE)) -> 
A38: 復元 4 | B38: CR14 | G38: =IF(B38="","",VLOOKUP(B38,座標入力!$B$3:$D$402,2,FALSE)) ->  | H38: =IF(B38="","",VLOOKUP(B38,座標入力!$B$3:$D$402,3,FALSE)) -> 
A39: 復元 5 | B39: CR15 | G39: =IF(B39="","",VLOOKUP(B39,座標入力!$B$3:$D$402,2,FALSE)) ->  | H39: =IF(B39="","",VLOOKUP(B39,座標入力!$B$3:$D$402,3,FALSE)) -> 
A40: 復元 6 | B40: CR16 | G40: =IF(B40="","",VLOOKUP(B40,座標入力!$B$3:$D$402,2,FALSE)) ->  | H40: =IF(B40="","",VLOOKUP(B40,座標入力!$B$3:$D$402,3,FALSE)) -> 
A41: 復元 7 | B41: CR17 | G41: =IF(B41="","",VLOOKUP(B41,座標入力!$B$3:$D$402,2,FALSE)) ->  | H41: =IF(B41="","",VLOOKUP(B41,座標入力!$B$3:$D$402,3,FALSE)) -> 
A42: 復元 8 | B42: CR18 | G42: =IF(B42="","",VLOOKUP(B42,座標入力!$B$3:$D$402,2,FALSE)) ->  | H42: =IF(B42="","",VLOOKUP(B42,座標入力!$B$3:$D$402,3,FALSE)) -> 
A43: 復元 9 | B43: CR19 | G43: =IF(B43="","",VLOOKUP(B43,座標入力!$B$3:$D$402,2,FALSE)) ->  | H43: =IF(B43="","",VLOOKUP(B43,座標入力!$B$3:$D$402,3,FALSE)) -> 
A44: 復元10 | B44: CR20 | G44: =IF(B44="","",VLOOKUP(B44,座標入力!$B$3:$D$402,2,FALSE)) ->  | H44: =IF(B44="","",VLOOKUP(B44,座標入力!$B$3:$D$402,3,FALSE)) -> 
A45: =面積計算!A61 -> C04O05K05U00DS1 | B45: 注意：秒(角度)の端数は切捨て。 | E45: =面積計算!G61 -> 座標入力使用者に名前入力

Sheet 放射トラバース
C1: 放射トラバース測量
A2: 《 観測手簿 》 | D2: =IF(OR(B8="",B9=""),"",IF(COUNTA(B8:C9)>0,1,0)) ->  | E2: =IF(D2="","",SUM(D2,D39,D76)) ->  | P2: =IF(D2="","","("&D2&"/"&$E$2&")") ->  | R2: 0度 | S2: =IF(AND(Q8>=0,R8=0),0,"") ->  | T2: =IF(AND(Q8>=0,R8=0),"0°0′0″","") -> 
A3: =面積計算!A2 -> 件名： | B3: =面積計算!B2 -> 福岡市○○区△△町１丁目地内道路測量 | R3: 90度 | S3: =IF(AND(Q8=0,R8>0),90,"") ->  | T3: =IF(AND(Q8=0,R8>0),"90°0′0″","") -> 
R4: 180度 | S4: =IF(AND(Q8<0,R8=0),180,"") ->  | T4: =IF(AND(Q8<0,R8=0),"180°0′0″","") -> 
A5: 観測日 | E5: 天候 | G5: 軟風 | I5: 気圧 | K5: 温度 | M5: 気象補正 | O5: 観測者 | R5: 270度 | S5: =IF(AND(Q8=0,R8<0),270,"") ->  | T5: =IF(AND(Q8=0,R8<0),"270°0′0″","") ->  | U5: 度 | W5: 分 | Y5: 秒
S6: =IF(AND(Q8>0,R8>0),Q9,"") ->  | T6: =IF(S6="","",U6&"°"&W6&"′"&Y6&"″") ->  | U6: =IF(S6="","",TRUNC(S6)) ->  | V6: =IF(S6="","",(S6-U6)*60) ->  | W6: =IF(V6="","",TRUNC(V6)) ->  | X6: =IF(V6="","",(V6-W6)*60) ->  | Y6: =IF(X6="","",ROUND(X6,0)) -> 
A7: 測 点 | D7: 標識の 種 類 | E7: 標 高 | F7: X座標 | H7: Y座標 | J7: 方向角 | K7: その他 | M7: 座 標 系 | N7: Ⅱ | O7: 緯 度 | P7: 33度 | Q7: DX | R7: DY | S7: =IF(AND(Q8<0,R8>0),(90-Q9),"") ->  | T7: =IF(S7="","",U7&"°"&W7&"′"&Y7&"″") ->  | U7: =IF(S7="","",TRUNC(S7)) ->  | V7: =IF(S7="","",(S7-U7)*60) ->  | W7: =IF(V7="","",TRUNC(V7)) ->  | X7: =IF(V7="","",(V7-W7)*60) ->  | Y7: =IF(X7="","",ROUND(X7,0)) -> 
A8: 器械点 | D8: M | F8: =IF(B8="","",VLOOKUP(B8,座標入力!$B$3:$D$402,2,FALSE)) ->  | H8: =IF(B8="","",VLOOKUP(B8,座標入力!$B$3:$D$402,3,FALSE)) ->  | J8: - | M8: 縮尺係数 | N8: 0.999901 | O8: 地 域 | P8: 九州東 | Q8: =F9-F8 ->  | R8: =H9-H8 ->  | S8: =IF(AND(Q8<0,R8<0),(180+Q9),"") ->  | T8: =IF(S8="","",U8&"°"&W8&"′"&Y8&"″") ->  | U8: =IF(S8="","",TRUNC(S8)) ->  | V8: =IF(S8="","",(S8-U8)*60) ->  | W8: =IF(V8="","",TRUNC(V8)) ->  | X8: =IF(V8="","",(V8-W8)*60) ->  | Y8: =IF(X8="","",ROUND(X8,0)) -> 
A9: 後視点 | D9: S | F9: =IF(B9="","",VLOOKUP(B9,座標入力!$B$3:$D$402,2,FALSE)) ->  | H9: =IF(B9="","",VLOOKUP(B9,座標入力!$B$3:$D$402,3,FALSE)) ->  | J9: =IF(H9="","",INDEX($T$1:$T$9,MAX(IF($T$1:$T$9<>"",ROW($T$1:$T$9))),1)) ->  | M9: 平均標高 | N9: 50 | O9: 区 域 | P9: 福岡県 | Q9: =ATAN(Q8/R8)*180/PI() ->  | S9: =IF(AND(Q8>0,R8<0),(270-Q9),"") ->  | T9: =IF(S9="","",U9&"°"&W9&"′"&Y9&"″") ->  | U9: =IF(S9="","",TRUNC(S9)) ->  | V9: =IF(S9="","",(S9-U9)*60) ->  | W9: =IF(V9="","",TRUNC(V9)) ->  | X9: =IF(V9="","",(V9-W9)*60) ->  | Y9: =IF(X9="","",ROUND(X9,0)) -> 
J10: =IF(H9="","",INDEX($S$1:$S$9,MAX(IF($S$1:$S$9<>"",ROW($S$1:$S$9))),1)) -> 
A11: 視準点 | B11: 角 度 | J11: 距 離 | N11: 平面直角座標 面上の距離 | O11: その他
B12: 水平角 | E12: 方向角 | G12: 高度角 | J12: 斜距離 | K12: 水平距離 | L12: 投影補正 | M12: 縮尺補正 | O12: 時 間 | P12: 目標高etc
A13: =IF(B9="","",B9) ->  | C13: 0° 0′ 0″ | E13: =IF(J9="","",J9) ->  | L13: 補正あり | M13: 補正あり | N13: =IF(OR(F8="",H8="",F9="",H9=""),"",SQRT((F8-F9)^2+(H8-H9)^2)) ->  | Q13: 度 | S13: 分 | U13: 秒 | V13: 10進法度 | W13: 方向角(1) | X13: 決定方向角 | Y13: 度 | AA13: 分 | AC13: 秒
C14: =IF(B14="","",Q14&"°"&S14&"′"&U14&"″") ->  | E14: =IF(OR(E13="",C14=""),"",Y14&"°"&AA14&"′"&AC14&"″") ->  | H14: =IF(G14="","",ABS(Q28)&"°"&ABS(S28)&"′"&ABS(U28)&"″") ->  | K14: =IF(H14="",IF(J14="","",J14),IF($G$12="高度角",ROUND(ABS(J14*COS(V28)),3),ROUND(ABS(J14*SIN(V28)),3))) ->  | L14: =IF(OR($N$9="",K14="",$L$13="補正なし"),"",ROUND(-$N$9*K14/6370000,3)) ->  | M14: =IF(OR($N$8="",K14="",$M$13="補正なし"),"",IF(L14="",ROUND(K14*($N$8-1),3),ROUND(AD14*($N$8-1),3))) ->  | N14: =IF(K14="","",SUM(K14:M14)) ->  | Q14: =IF(B14="","",TRUNC(B14)) ->  | R14: =IF(Q14="","",(B14-Q14)*100) ->  | S14: =IF(R14="","",TRUNC(R14)) ->  | T14: =IF(R14="","",(R14-S14)*100) ->  | U14: =IF(T14="","",ROUND(T14,0)) ->  | V14: =IF(B14="","",Q14+S14/60+U14/3600) ->  | W14: =$J$10+V14 ->  | X14: =IF(W14>=360,W14-360,W14) ->  | Y14: =IF(OR(E13="",C14=""),"",TRUNC(X14)) ->  | Z14: =IF(X14="","",(X14-Y14)*60) ->  | AA14: =IF(Z14="","",TRUNC(Z14)) ->  | AB14: =IF(Z14="","",(Z14-AA14)*60) ->  | AC14: =IF(AB14="","",ROUND(AB14,0)) ->  | AD14: =IF(OR(K14="",L14="",$L$13="補正なし"),"",K14+L14) -> 
C15: =IF(B15="","",Q15&"°"&S15&"′"&U15&"″") ->  | E15: =IF(OR(E14="",C15=""),"",Y15&"°"&AA15&"′"&AC15&"″") ->  | H15: =IF(G15="","",ABS(Q29)&"°"&ABS(S29)&"′"&ABS(U29)&"″") ->  | K15: =IF(H15="",IF(J15="","",J15),IF($G$12="高度角",ROUND(ABS(J15*COS(V29)),3),ROUND(ABS(J15*SIN(V29)),3))) ->  | L15: =IF(OR($N$9="",K15="",$L$13="補正なし"),"",ROUND(-$N$9*K15/6370000,3)) ->  | M15: =IF(OR($N$8="",K15="",$M$13="補正なし"),"",IF(L15="",ROUND(K15*($N$8-1),3),ROUND(AD15*($N$8-1),3))) ->  | Q15: =IF(B15="","",TRUNC(B15)) ->  | R15: =IF(Q15="","",(B15-Q15)*100) ->  | S15: =IF(R15="","",TRUNC(R15)) ->  | T15: =IF(R15="","",(R15-S15)*100) ->  | U15: =IF(T15="","",ROUND(T15,0)) ->  | V15: =IF(B15="","",Q15+S15/60+U15/3600) ->  | W15: =$J$10+V15 ->  | X15: =IF(W15>=360,W15-360,W15) ->  | Y15: =IF(OR(E14="",C15=""),"",TRUNC(X15)) ->  | Z15: =IF(X15="","",(X15-Y15)*60) ->  | AA15: =IF(Z15="","",TRUNC(Z15)) ->  | AB15: =IF(Z15="","",(Z15-AA15)*60) ->  | AC15: =IF(AB15="","",ROUND(AB15,0)) ->  | AD15: =IF(OR(K15="",L15="",$L$13="補正なし"),"",K15+L15) -> 
E16: =IF(OR(E15="",C16=""),"",Y16&"°"&AA16&"′"&AC16&"″") -> 
AD17: =IF(OR(K17="",L17="",$L$13="補正なし"),"",K17+L17) -> 
L18: =IF(OR($N$9="",K18="",$L$13="補正なし"),"",ROUND(-$N$9*K18/6370000,3)) ->  | M18: =IF(OR($N$8="",K18="",$M$13="補正なし"),"",IF(L18="",ROUND(K18*($N$8-1),3),ROUND(AD18*($N$8-1),3))) -> 
N19: =IF(K19="","",SUM(K19:M19)) -> 
AD23: =IF(OR(K23="",L23="",$L$13="補正なし"),"",K23+L23) -> 
L24: ※投影補正にジオイド高は考慮してません。
A25: 《 座標計算書 》
A27: 視準点 | B27: X座標 | E27: Y座標 | G27: 標 高 | I27: その他 | L27: 記 号 | M27: 標識の種類 | Q27: 度 | S27: 分 | U27: 秒 | V27: 10進法度
A28: =IF(A14="","",A14) ->  | B28: =IF(OR(C14="",N14="",$F$8=""),"",$F$8+N14*COS(X14)) ->  | E28: =IF(OR($H$8="",C14="",N14=""),"",$H$8+N14*SIN(V14)) ->  | L28: M | M28: ミカゲ石 | Q28: =IF(G14="","",TRUNC(G14)) ->  | R28: =IF(G14="","",(G14-Q28)*100) ->  | S28: =IF(R28="","",TRUNC(R28)) ->  | T28: =IF(R28="","",(R28-S28)*100) ->  | U28: =IF(T28="","",ROUND(T28,0)) ->  | V28: =IF(G14="","",Q28+S28/60+U28/3600) -> 
A29: =IF(A15="","",A15) ->  | B29: =IF(OR(C15="",N15="",$F$8=""),"",$F$8+N15*COS(X15)) ->  | E29: =IF(OR($H$8="",C15="",N15=""),"",$H$8+N15*SIN(V15)) ->  | L29: C | M29: コンクリート杭 | Q29: =IF(G15="","",TRUNC(G15)) ->  | R29: =IF(G15="","",(G15-Q29)*100) ->  | S29: =IF(R29="","",TRUNC(R29)) ->  | T29: =IF(R29="","",(R29-S29)*100) ->  | U29: =IF(T29="","",ROUND(T29,0)) ->  | V29: =IF(G15="","",Q29+S29/60+U29/3600) -> 
L30: S | M30: 真鍮製金属標 | Q30: =IF(G16="","",TRUNC(G16)) ->  | R30: =IF(G16="","",(G16-Q30)*100) ->  | T30: =IF(R30="","",(R30-S30)*100) ->  | V30: =IF(G16="","",Q30+S30/60+U30/3600) -> 
L31: B | M31: 金属鋲
L32: P | M32: プレート板
L33: T | M33: 木杭 | Q33: =IF(G19="","",TRUNC(G19)) ->  | R33: =IF(G19="","",(G19-Q33)*100) -> 
L34: K | M34: 刻み
M37: =座標入力!$J$3 -> C04O05K05U00DS1 | O37: =座標入力!J4 -> 座標入力使用者に名前入力
A39: 《 観測手簿 》 | D39: =IF(OR(B45="",B46=""),"",IF(COUNTA(B45:C46)>0,1,0)) -> 1 | E39: =IF(D39="","",D2+D39) ->  | P39: =IF(D39="","","("&E39&"/"&$E$2&")") ->  | R39: 0度 | S39: =IF(AND(Q45>=0,R45=0),0,"") ->  | T39: =IF(AND(Q45>=0,R45=0),"0°0′0″","") -> 
A40: =$A$3 -> 件名： | B40: =$B$3 -> 福岡市○○区△△町１丁目地内道路測量 | R40: 90度 | S40: =IF(AND(Q45=0,R45>0),90,"") ->  | T40: =IF(AND(Q45=0,R45>0),"90°0′0″","") -> 
R41: 180度 | S41: =IF(AND(Q45<0,R45=0),180,"") ->  | T41: =IF(AND(Q45<0,R45=0),"180°0′0″","") -> 
A42: 観測日 | B42: =$B$5 -> 00:00:00 | E42: 天候 | F42: =$F$5 -> 0 | G42: =$G$5 -> 軟風 | H42: =$H$5 -> 0 | I42: 気圧 | J42: =$J$5 -> 0 | K42: 温度 | L42: =$L$5 -> 0 | M42: 気象補正 | N42: =$N$5 -> 0 | O42: 観測者 | P42: =$P$5 -> 0 | R42: 270度 | S42: =IF(AND(Q45=0,R45<0),270,"") ->  | T42: =IF(AND(Q45=0,R45<0),"270°0′0″","") ->  | U42: 度 | W42: 分 | Y42: 秒
S43: =IF(AND(Q45>0,R45>0),Q46,"") ->  | T43: =IF(S43="","",U43&"°"&W43&"′"&Y43&"″") ->  | U43: =IF(S43="","",TRUNC(S43)) ->  | V43: =IF(S43="","",(S43-U43)*60) ->  | W43: =IF(V43="","",TRUNC(V43)) ->  | X43: =IF(V43="","",(V43-W43)*60) ->  | Y43: =IF(X43="","",ROUND(X43,0)) -> 
A44: 測 点 | D44: 標識の 種 類 | E44: 標 高 | F44: X座標 | H44: Y座標 | J44: 方向角 | K44: その他 | M44: 座 標 系 | N44: =$N$7 -> Ⅱ | O44: 緯 度 | P44: =$P$7 -> 33度 | Q44: DX | R44: DY | S44: =IF(AND(Q45<0,R45>0),(90-Q46),"") ->  | T44: =IF(S44="","",U44&"°"&W44&"′"&Y44&"″") ->  | U44: =IF(S44="","",TRUNC(S44)) ->  | V44: =IF(S44="","",(S44-U44)*60) ->  | W44: =IF(V44="","",TRUNC(V44)) ->  | X44: =IF(V44="","",(V44-W44)*60) ->  | Y44: =IF(X44="","",ROUND(X44,0)) -> 
A45: 器械点 | B45: AR44 | D45: M | F45: =IF(B45="","",VLOOKUP(B45,座標入力!$B$3:$D$402,2,FALSE)) ->  | H45: =IF(B45="","",VLOOKUP(B45,座標入力!$B$3:$D$402,3,FALSE)) ->  | J45: - | M45: 縮尺係数 | N45: 0.999901 | O45: 地 域 | P45: =$P$8 -> 九州東 | Q45: =F46-F45 ->  | R45: =H46-H45 ->  | S45: =IF(AND(Q45<0,R45<0),(180+Q46),"") ->  | T45: =IF(S45="","",U45&"°"&W45&"′"&Y45&"″") ->  | U45: =IF(S45="","",TRUNC(S45)) ->  | V45: =IF(S45="","",(S45-U45)*60) ->  | W45: =IF(V45="","",TRUNC(V45)) ->  | X45: =IF(V45="","",(V45-W45)*60) ->  | Y45: =IF(X45="","",ROUND(X45,0)) -> 
A46: 後視点 | B46: Z44 | D46: S | F46: =IF(B46="","",VLOOKUP(B46,座標入力!$B$3:$D$402,2,FALSE)) ->  | H46: =IF(B46="","",VLOOKUP(B46,座標入力!$B$3:$D$402,3,FALSE)) ->  | J46: =IF(H46="","",INDEX(T1:T46,MAX(IF(T1:T46<>"",ROW(T1:T46))),1)) ->  | M46: 平均標高 | N46: 50 | O46: 区 域 | P46: =$P$9 -> 福岡県 | Q46: =ATAN(Q45/R45)*180/PI() ->  | S46: =IF(AND(Q45>0,R45<0),(270-Q46),"") ->  | T46: =IF(S46="","",U46&"°"&W46&"′"&Y46&"″") ->  | U46: =IF(S46="","",TRUNC(S46)) ->  | V46: =IF(S46="","",(S46-U46)*60) ->  | W46: =IF(V46="","",TRUNC(V46)) ->  | X46: =IF(V46="","",(V46-W46)*60) ->  | Y46: =IF(X46="","",ROUND(X46,0)) -> 
J47: =IF(H46="","",INDEX($S$1:$S$46,MAX(IF($S$1:$S$46<>"",ROW($S$1:$S$46))),1)) -> 
A48: 視準点 | B48: 角 度 | J48: 距 離 | N48: 平面直角座標 面上の距離 | O48: その他
B49: 水平角 | E49: 方向角 | G49: 高度角 | J49: 斜距離 | K49: 球面距離 | L49: 投影補正 | M49: 縮尺補正 | O49: 時 間 | P49: 目標高etc
A50: =IF(B46="","",B46) -> Z44 | C50: 0° 0′ 0″ | E50: =IF(J46="","",J46) ->  | L50: 補正あり | M50: 補正なし | N50: =IF(OR(F45="",H45="",F46="",H46=""),"",SQRT((F45-F46)^2+(H45-H46)^2)) ->  | O50: 07:15:00 | Q50: 度 | S50: 分 | U50: 秒 | V50: 10進法度 | W50: 方向角(1) | X50: 決定方向角 | Y50: 度 | AA50: 分 | AC50: 秒
A51: P1 | B51: 128.5959 | C51: =IF(B51="","",Q51&"°"&S51&"′"&U51&"″") -> 128°59′59″ | E51: =IF(OR(E50="",C51=""),"",Y51&"°"&AA51&"′"&AC51&"″") ->  | G51: -9.3629 | H51: =IF(G51="","",ABS(Q65)&"°"&ABS(S65)&"′"&ABS(U65)&"″") -> 9°36′29″ | J51: 100 | K51: =IF(H51="",IF(J51="","",J51),IF($G$49="高度角",ROUND(ABS(J51*COS(V65)),3),ROUND(ABS(J51*SIN(V65)),3))) -> 98.325 | L51: =IF(OR($N$9="",K51="",$L$50="補正なし"),"",ROUND(-$N$9*K51/6370000,3)) -> -0.001 | M51: =IF(OR($N$8="",K51="",$M$50="補正なし"),"",IF(L51="",ROUND(K51*($N$8-1),3),ROUND(AD51*($N$8-1),3))) ->  | N51: =IF(K51="","",SUM(K51:M51)) -> 98.324 | Q51: =IF(B51="","",TRUNC(B51)) -> 128 | R51: =IF(Q51="","",(B51-Q51)*100) -> 59.59 | S51: =IF(R51="","",TRUNC(R51)) -> 59 | T51: =IF(R51="","",(R51-S51)*100) -> 59 | U51: =IF(T51="","",ROUND(T51,0)) -> 59 | V51: =IF(B51="","",Q51+S51/60+U51/3600) -> 128.9997222 | W51: =$J$47+V51 ->  | X51: =IF(W51>=360,W51-360,W51) ->  | Y51: =IF(OR(E50="",C51=""),"",TRUNC(X51)) ->  | Z51: =IF(X51="","",(X51-Y51)*60) ->  | AA51: =IF(Z51="","",TRUNC(Z51)) ->  | AB51: =IF(Z51="","",(Z51-AA51)*60) ->  | AC51: =IF(AB51="","",ROUND(AB51,0)) ->  | AD51: =IF(OR(K51="",L51="",$L$50="補正なし"),"",K51+L51) -> 98.324
A52: P2 | B52: 1.2636 | C52: =IF(B52="","",Q52&"°"&S52&"′"&U52&"″") -> 1°26′36″ | E52: =IF(OR(E51="",C52=""),"",Y52&"°"&AA52&"′"&AC52&"″") ->  | G52: 12.3636 | H52: =IF(G52="","",ABS(Q66)&"°"&ABS(S66)&"′"&ABS(U66)&"″") -> 12°36′36″ | J52: 10 | K52: =IF(H52="",IF(J52="","",J52),IF($G$49="高度角",ROUND(ABS(J52*COS(V66)),3),ROUND(ABS(J52*SIN(V66)),3))) -> 9.99 | L52: =IF(OR($N$9="",K52="",$L$50="補正なし"),"",ROUND(-$N$9*K52/6370000,3)) -> 0 | M52: =IF(OR($N$8="",K52="",$M$50="補正なし"),"",IF(L52="",ROUND(K52*($N$8-1),3),ROUND(AD52*($N$8-1),3))) ->  | N52: 9.99 | Q52: =IF(B52="","",TRUNC(B52)) -> 1 | R52: =IF(Q52="","",(B52-Q52)*100) -> 26.36 | S52: =IF(R52="","",TRUNC(R52)) -> 26 | T52: =IF(R52="","",(R52-S52)*100) -> 36 | U52: =IF(T52="","",ROUND(T52,0)) -> 36 | V52: =IF(B52="","",Q52+S52/60+U52/3600) -> 1.443333333 | W52: =$J$47+V52 ->  | X52: =IF(W52>=360,W52-360,W52) ->  | Y52: =IF(OR(E51="",C52=""),"",TRUNC(X52)) ->  | Z52: =IF(X52="","",(X52-Y52)*60) ->  | AA52: =IF(Z52="","",TRUNC(Z52)) ->  | AB52: =IF(Z52="","",(Z52-AA52)*60) ->  | AC52: =IF(AB52="","",ROUND(AB52,0)) ->  | AD52: =IF(OR(K52="",L52="",$L$50="補正なし"),"",K52+L52) -> 9.99
A53: P3 | B53: 25.2828 | C53: 25°28′28″ | E53: =IF(OR(E52="",C53=""),"",Y53&"°"&AA53&"′"&AC53&"″") ->  | G53: -12.3636 | H53: 12°36′36″ | J53: 100 | K53: 99.905 | L53: =IF(OR($N$9="",K53="",$L$50="補正なし"),"",ROUND(-$N$9*K53/6370000,3)) -> -0.001 | M53: =IF(OR($N$8="",K53="",$M$50="補正なし"),"",IF(L53="",ROUND(K53*($N$8-1),3),ROUND(AD53*($N$8-1),3))) ->  | N53: 99.904 | Q53: 25 | R53: 28.28 | S53: 28 | T53: 28 | U53: 28 | V53: 25.47444444 | X53: =IF(W53>=360,W53-360,W53) ->  | AD53: =IF(OR(K53="",L53="",$L$50="補正なし"),"",K53+L53) -> 99.904
A54: P4 | B54: 3.2536 | C54: 3°25′36″ | G54: 9.3629 | H54: 9°36′29″ | J54: 100 | K54: 98.325 | L54: =IF(OR($N$9="",K54="",$L$50="補正なし"),"",ROUND(-$N$9*K54/6370000,3)) -> -0.001 | N54: 98.324 | Q54: 3 | R54: 25.36 | S54: 25 | T54: 36 | U54: 36 | V54: 3.426666667 | AD54: =IF(OR(K54="",L54="",$L$50="補正なし"),"",K54+L54) -> 98.324
A55: P5 | B55: 4.2336 | C55: 4°23′36″ | J55: 100 | K55: 100 | L55: -0.001 | N55: 99.999 | Q55: 4 | R55: 23.36 | S55: 23 | T55: 36 | U55: 36 | V55: 4.393333333 | AD55: =IF(OR(K55="",L55="",$L$50="補正なし"),"",K55+L55) -> 99.999
A56: P6 | B56: 3.303 | C56: 3°30′30″ | J56: 100 | K56: 100 | L56: -0.001 | M56: =IF(OR($N$8="",K56="",$M$50="補正なし"),"",IF(L56="",ROUND(K56*($N$8-1),3),ROUND(AD56*($N$8-1),3))) ->  | N56: 99.999 | Q56: 3 | R56: 30.3 | S56: 30 | T56: 30 | U56: 30 | V56: 3.508333333 | AD56: 99.999
A57: P7 | B57: 5.303 | C57: 5°30′30″ | J57: 300 | K57: 300 | L57: -0.002 | M57: =IF(OR($N$8="",K57="",$M$50="補正なし"),"",IF(L57="",ROUND(K57*($N$8-1),3),ROUND(AD57*($N$8-1),3))) ->  | N57: 299.998 | Q57: 5 | R57: 30.3 | S57: 30 | T57: 30 | U57: 30 | V57: 5.508333333 | AD57: 299.998
A58: P8 | B58: 5 | C58: 5°0′0″ | J58: 100 | K58: 100 | L58: =IF(OR($N$9="",K58="",$L$50="補正なし"),"",ROUND(-$N$9*K58/6370000,3)) -> -0.001 | N58: 99.999 | Q58: 5 | R58: 0 | S58: 0 | T58: 0 | U58: 0 | V58: 5 | AD58: 99.999
A59: P9 | B59: 359 | C59: 359°0′0″ | J59: 100 | K59: 100 | L59: -0.001 | N59: 99.999 | Q59: 359 | R59: 0 | S59: 0 | T59: 0 | U59: 0 | V59: 359 | AD59: 99.999
A60: P10 | B60: 1.2536 | C60: 1°25′36″ | J60: 100 | K60: 100 | L60: -0.001 | N60: 99.999 | O60: 14:25:00 | Q60: 1 | R60: 25.36 | S60: 25 | T60: 36 | U60: 36 | V60: 1.426666667 | AD60: 99.999
L61: ※投影補正にジオイド高は考慮してません。
A62: 《 座標計算書 》
A64: 視準点 | B64: X座標 | E64: Y座標 | G64: 標 高 | I64: その他 | L64: 記 号 | M64: 標識の種類 | Q64: 度 | S64: 分 | U64: 秒 | V64: 10進法度
A65: =IF(A51="","",A51) -> P1 | B65: =IF(OR(C51="",N51="",$F$45=""),"",$F$8+N51*COS(X51)) ->  | E65: =IF(OR($H$45="",C51="",N51=""),"",$H$45+N51*SIN(V51)) ->  | L65: M | M65: ミカゲ石 | Q65: =IF(G51="","",TRUNC(G51)) -> -9 | R65: =IF(G51="","",(G51-Q65)*100) -> -36.29 | S65: =IF(R65="","",TRUNC(R65)) -> -36 | T65: =IF(R65="","",(R65-S65)*100) -> -29 | U65: =IF(T65="","",ROUND(T65,0)) -> -29 | V65: =IF(G51="","",Q65+S65/60+U65/3600) -> -9.608055556
A66: =IF(A52="","",A52) -> P2 | B66: =IF(OR(C52="",N52="",$F$45=""),"",$F$8+N52*COS(X52)) ->  | E66: =IF(OR($H$45="",C52="",N52=""),"",$H$45+N52*SIN(V52)) ->  | L66: C | M66: コンクリート杭 | Q66: =IF(G52="","",TRUNC(G52)) -> 12 | R66: =IF(G52="","",(G52-Q66)*100) -> 36.36 | S66: =IF(R66="","",TRUNC(R66)) -> 36 | T66: =IF(R66="","",(R66-S66)*100) -> 36 | U66: =IF(T66="","",ROUND(T66,0)) -> 36 | V66: =IF(G52="","",Q66+S66/60+U66/3600) -> 12.61
A67: P3 | E67: =IF(OR($H$45="",C53="",N53=""),"",$H$45+N53*SIN(V53)) ->  | L67: S | M67: 真鍮製金属標 | Q67: -12 | R67: -36.36 | S67: -36 | T67: -36 | U67: -36 | V67: -12.61
A68: P4 | L68: B | M68: 金属鋲 | Q68: 9 | R68: 36.29 | S68: 36 | T68: 29 | U68: 29 | V68: 9.608055556
A69: P5 | L69: P | M69: プレート板 | Q69: =IF(G55="","",TRUNC(G55)) -> 
A70: P6 | L70: T | M70: 木杭
A71: P7 | L71: K | M71: 刻み
A72: P8
A73: P9
A74: P10 | M74: =座標入力!$J$3 -> C04O05K05U00DS1 | O74: =O37 -> 座標入力使用者に名前入力
A76: 《 観測手簿 》 | D76: =IF(OR(B82="",B83=""),"",IF(COUNTA(B82:C83)>0,1,0)) -> 1 | E76: =IF(D76="","",D2+D39+D76) ->  | P76: =IF(D76="","","("&E76&"/"&$E$2&")") ->  | R76: 0度 | S76: =IF(AND(Q82>=0,R82=0),0,"") ->  | T76: =IF(AND(Q82>=0,R82=0),"0°0′0″","") -> 
A77: =$A$3 -> 件名： | B77: =$B$3 -> 福岡市○○区△△町１丁目地内道路測量 | R77: 90度 | S77: =IF(AND(Q82=0,R82>0),90,"") ->  | T77: =IF(AND(Q82=0,R82>0),"90°0′0″","") -> 
R78: 180度 | S78: =IF(AND(Q82<0,R82=0),180,"") ->  | T78: =IF(AND(Q82<0,R82=0),"180°0′0″","") -> 
A79: 観測日 | B79: =$B$5 -> 00:00:00 | E79: 天候 | F79: =$F$5 -> 0 | G79: =$G$5 -> 軟風 | H79: =$H$5 -> 0 | I79: 気圧 | J79: =$J$5 -> 0 | K79: 温度 | L79: =$L$5 -> 0 | M79: 気象補正 | N79: =$N$5 -> 0 | O79: 観測者 | P79: =$P$5 -> 0 | R79: 270度 | S79: =IF(AND(Q82=0,R82<0),270,"") ->  | T79: =IF(AND(Q82=0,R82<0),"270°0′0″","") ->  | U79: 度 | W79: 分 | Y79: 秒
S80: =IF(AND(Q82>0,R82>0),Q83,"") ->  | T80: =IF(S80="","",U80&"°"&W80&"′"&Y80&"″") ->  | U80: =IF(S80="","",TRUNC(S80)) ->  | V80: =IF(S80="","",(S80-U80)*60) ->  | W80: =IF(V80="","",TRUNC(V80)) ->  | X80: =IF(V80="","",(V80-W80)*60) ->  | Y80: =IF(X80="","",ROUND(X80,0)) -> 
A81: 測 点 | D81: 標識の 種 類 | E81: 標 高 | F81: X座標 | H81: Y座標 | J81: 方向角 | K81: その他 | M81: 座 標 系 | N81: =$N$7 -> Ⅱ | O81: 緯 度 | P81: =$P$7 -> 33度 | Q81: DX | R81: DY | S81: =IF(AND(Q82<0,R82>0),(90-Q83),"") ->  | T81: =IF(S81="","",U81&"°"&W81&"′"&Y81&"″") ->  | U81: =IF(S81="","",TRUNC(S81)) ->  | V81: =IF(S81="","",(S81-U81)*60) ->  | W81: =IF(V81="","",TRUNC(V81)) ->  | X81: =IF(V81="","",(V81-W81)*60) ->  | Y81: =IF(X81="","",ROUND(X81,0)) -> 
A82: 器械点 | B82: AR43 | D82: M | F82: =IF(B82="","",VLOOKUP(B82,座標入力!$B$3:$D$402,2,FALSE)) ->  | H82: =IF(B82="","",VLOOKUP(B82,座標入力!$B$3:$D$402,3,FALSE)) ->  | J82: - | M82: 縮尺係数 | N82: 0.999901 | O82: 地 域 | P82: =$P$8 -> 九州東 | Q82: =F83-F82 ->  | R82: =H83-H82 ->  | S82: =IF(AND(Q82<0,R82<0),(180+Q83),"") ->  | T82: =IF(S82="","",U82&"°"&W82&"′"&Y82&"″") ->  | U82: =IF(S82="","",TRUNC(S82)) ->  | V82: =IF(S82="","",(S82-U82)*60) ->  | W82: =IF(V82="","",TRUNC(V82)) ->  | X82: =IF(V82="","",(V82-W82)*60) ->  | Y82: =IF(X82="","",ROUND(X82,0)) -> 
A83: 後視点 | B83: Z40 | D83: S | F83: =IF(B83="","",VLOOKUP(B83,座標入力!$B$3:$D$402,2,FALSE)) ->  | H83: =IF(B83="","",VLOOKUP(B83,座標入力!$B$3:$D$402,3,FALSE)) ->  | J83: =IF(H83="","",INDEX($T$1:$T$83,MAX(IF($T$1:$T$83<>"",ROW($T$1:$T$83))),1)) ->  | M83: 平均標高 | N83: 50 | O83: 区 域 | P83: =$P$9 -> 福岡県 | Q83: =ATAN(Q82/R82)*180/PI() ->  | S83: =IF(AND(Q82>0,R82<0),(270-Q83),"") ->  | T83: =IF(S83="","",U83&"°"&W83&"′"&Y83&"″") ->  | U83: =IF(S83="","",TRUNC(S83)) ->  | V83: =IF(S83="","",(S83-U83)*60) ->  | W83: =IF(V83="","",TRUNC(V83)) ->  | X83: =IF(V83="","",(V83-W83)*60) ->  | Y83: =IF(X83="","",ROUND(X83,0)) -> 
J84: =IF(H83="","",INDEX($S$1:$S$83,MAX(IF($S$1:$S$83<>"",ROW($S$1:$S$83))),1)) -> 
A85: 視準点 | B85: 角 度 | J85: 距 離 | N85: 平面直角座標 面上の距離 | O85: その他
B86: 水平角 | E86: 方向角 | G86: 高度角 | J86: 斜距離 | K86: 球面距離 | L86: 投影補正 | M86: 縮尺補正 | O86: 時 間 | P86: 目標高etc
A87: =IF(B83="","",B83) -> Z40 | C87: 0° 0′ 0″ | E87: =IF(J83="","",J83) ->  | L87: 補正あり | M87: 補正あり | N87: =IF(OR(F82="",H82="",F83="",H83=""),"",SQRT((F82-F83)^2+(H82-H83)^2)) ->  | O87: 07:15:00 | Q87: 度 | S87: 分 | U87: 秒 | V87: 10進法度 | W87: 方向角(1) | X87: 決定方向角 | Y87: 度 | AA87: 分 | AC87: 秒
A88: P1 | B88: 128.5959 | C88: =IF(B88="","",Q88&"°"&S88&"′"&U88&"″") -> 128°59′59″ | E88: =IF(OR(E87="",C88=""),"",Y88&"°"&AA88&"′"&AC88&"″") ->  | G88: -9.3629 | H88: =IF(G88="","",ABS(Q102)&"°"&ABS(S102)&"′"&ABS(U102)&"″") -> 9°36′29″ | J88: 100 | K88: =IF(H88="",IF(J88="","",J88),IF($G$86="高度角",ROUND(ABS(J88*COS(V102)),3),ROUND(ABS(J88*SIN(V102)),3))) -> 98.325 | L88: =IF(OR($N$9="",K88="",$L$87="補正なし"),"",ROUND(-$N$9*K88/6370000,3)) -> -0.001 | M88: =IF(OR($N$8="",K88="",$M$87="補正なし"),"",IF(L88="",ROUND(K88*($N$8-1),3),ROUND(AD88*($N$8-1),3))) -> -0.01 | N88: =IF(K88="","",SUM(K88:M88)) -> 98.314 | Q88: =IF(B88="","",TRUNC(B88)) -> 128 | R88: =IF(Q88="","",(B88-Q88)*100) -> 59.59 | S88: =IF(R88="","",TRUNC(R88)) -> 59 | T88: =IF(R88="","",(R88-S88)*100) -> 59 | U88: =IF(T88="","",ROUND(T88,0)) -> 59 | V88: =IF(B88="","",Q88+S88/60+U88/3600) -> 128.9997222 | W88: =$J$84+V88 ->  | X88: =IF(W88>=360,W88-360,W88) ->  | Y88: =IF(OR(E87="",C88=""),"",TRUNC(X88)) ->  | Z88: =IF(X88="","",(X88-Y88)*60) ->  | AA88: =IF(Z88="","",TRUNC(Z88)) ->  | AB88: =IF(Z88="","",(Z88-AA88)*60) ->  | AC88: =IF(AB88="","",ROUND(AB88,0)) ->  | AD88: =IF(OR(K88="",L88="",$L$87="補正なし"),"",K88+L88) -> 98.324
A89: P2 | B89: 1.2636 | C89: =IF(B89="","",Q89&"°"&S89&"′"&U89&"″") -> 1°26′36″ | E89: =IF(OR(E88="",C89=""),"",Y89&"°"&AA89&"′"&AC89&"″") ->  | G89: 12.3636 | H89: =IF(G89="","",ABS(Q103)&"°"&ABS(S103)&"′"&ABS(U103)&"″") -> 12°36′36″ | J89: 10 | K89: =IF(H89="",IF(J89="","",J89),IF($G$86="高度角",ROUND(ABS(J89*COS(V103)),3),ROUND(ABS(J89*SIN(V103)),3))) -> 9.99 | L89: =IF(OR($N$9="",K89="",$L$87="補正なし"),"",ROUND(-$N$9*K89/6370000,3)) -> 0 | M89: =IF(OR($N$8="",K89="",$M$87="補正なし"),"",IF(L89="",ROUND(K89*($N$8-1),3),ROUND(AD89*($N$8-1),3))) -> -0.001 | N89: =IF(K89="","",SUM(K89:M89)) -> 9.989 | Q89: =IF(B89="","",TRUNC(B89)) -> 1 | R89: =IF(Q89="","",(B89-Q89)*100) -> 26.36 | S89: =IF(R89="","",TRUNC(R89)) -> 26 | T89: =IF(R89="","",(R89-S89)*100) -> 36 | U89: =IF(T89="","",ROUND(T89,0)) -> 36 | V89: =IF(B89="","",Q89+S89/60+U89/3600) -> 1.443333333 | W89: =$J$84+V89 ->  | X89: =IF(W89>=360,W89-360,W89) ->  | Y89: =IF(OR(E88="",C89=""),"",TRUNC(X89)) ->  | Z89: =IF(X89="","",(X89-Y89)*60) ->  | AA89: =IF(Z89="","",TRUNC(Z89)) ->  | AB89: =IF(Z89="","",(Z89-AA89)*60) ->  | AC89: =IF(AB89="","",ROUND(AB89,0)) ->  | AD89: 9.99
A90: P3 | B90: 25.2828 | C90: 25°28′28″ | E90: =IF(OR(E89="",C90=""),"",Y90&"°"&AA90&"′"&AC90&"″") ->  | G90: -12.3636 | H90: 12°36′36″ | J90: 100 | K90: 99.905 | L90: -0.001 | M90: =IF(OR($N$8="",K90="",$M$87="補正なし"),"",IF(L90="",ROUND(K90*($N$8-1),3),ROUND(AD90*($N$8-1),3))) -> -0.01 | N90: 99.894 | Q90: 25 | R90: 28.28 | S90: 28 | T90: 28 | U90: 28 | V90: 25.47444444 | W90: =$J$84+V90 ->  | AD90: 99.904
A91: P4 | B91: 3.2536 | C91: 3°25′36″ | G91: 9.3629 | H91: 9°36′29″ | J91: 100 | K91: 98.325 | L91: =IF(OR($N$9="",K91="",$L$87="補正なし"),"",ROUND(-$N$9*K91/6370000,3)) -> -0.001 | M91: -0.01 | N91: 98.314 | Q91: 3 | R91: 25.36 | S91: 25 | T91: 36 | U91: 36 | V91: 3.426666667 | AD91: 98.324
A92: P5 | B92: 4.2336 | C92: 4°23′36″ | J92: 100 | K92: 100 | L92: =IF(OR($N$9="",K92="",$L$87="補正なし"),"",ROUND(-$N$9*K92/6370000,3)) -> -0.001 | M92: -0.01 | N92: 99.989 | Q92: 4 | R92: 23.36 | S92: 23 | T92: 36 | U92: 36 | V92: 4.393333333 | AD92: 99.999
A93: P6 | B93: 3.303 | C93: 3°30′30″ | J93: 100 | K93: 100 | L93: -0.001 | M93: =IF(OR($N$8="",K93="",$M$87="補正なし"),"",IF(L93="",ROUND(K93*($N$8-1),3),ROUND(AD93*($N$8-1),3))) -> -0.01 | N93: 99.989 | Q93: 3 | R93: 30.3 | S93: 30 | T93: 30 | U93: 30 | V93: 3.508333333 | AD93: 99.999
A94: P7 | B94: 5.303 | C94: 5°30′30″ | J94: 100 | K94: 100 | L94: -0.001 | M94: -0.01 | N94: 99.989 | Q94: 5 | R94: 30.3 | S94: 30 | T94: 30 | U94: 30 | V94: 5.508333333 | AD94: 99.999
A95: P8 | B95: 5 | C95: 5°0′0″ | J95: 100 | K95: 100 | L95: -0.001 | M95: -0.01 | N95: 99.989 | Q95: 5 | R95: 0 | S95: 0 | T95: 0 | U95: 0 | V95: 5 | AD95: 99.999
A96: P9 | B96: 359 | C96: 359°0′0″ | J96: 100 | K96: 100 | L96: -0.001 | M96: -0.01 | N96: 99.989 | Q96: 359 | R96: 0 | S96: 0 | T96: 0 | U96: 0 | V96: 359 | AD96: 99.999
A97: P10 | B97: 1.2536 | C97: 1°25′36″ | J97: 100 | K97: 100 | L97: -0.001 | M97: -0.01 | N97: 99.989 | O97: 14:25:00 | Q97: 1 | R97: 25.36 | S97: 25 | T97: 36 | U97: 36 | V97: 1.426666667 | AD97: 99.999
L98: ※投影補正にジオイド高は考慮してません。
A99: 《 座標計算書 》
A101: 視準点 | B101: X座標 | E101: Y座標 | G101: 標 高 | I101: その他 | L101: 記 号 | M101: 標識の種類 | Q101: 度 | S101: 分 | U101: 秒 | V101: 10進法度
A102: =IF(A88="","",A88) -> P1 | B102: =IF(OR(C88="",N88="",$F$82=""),"",$F$82+N88*COS(X88)) ->  | E102: =IF(OR($H$82="",C88="",N88=""),"",$H$82+N88*SIN(V88)) ->  | L102: M | M102: ミカゲ石 | Q102: =IF(G88="","",TRUNC(G88)) -> -9 | R102: =IF(G88="","",(G88-Q102)*100) -> -36.29 | S102: =IF(R102="","",TRUNC(R102)) -> -36 | T102: =IF(R102="","",(R102-S102)*100) -> -29 | U102: =IF(T102="","",ROUND(T102,0)) -> -29 | V102: =IF(G88="","",Q102+S102/60+U102/3600) -> -9.608055556
A103: =IF(A89="","",A89) -> P2 | B103: =IF(OR(C89="",N89="",$F$82=""),"",$F$82+N89*COS(X89)) ->  | E103: =IF(OR($H$82="",C89="",N89=""),"",$H$82+N89*SIN(V89)) ->  | L103: C | M103: コンクリート杭 | Q103: =IF(G89="","",TRUNC(G89)) -> 12 | R103: =IF(G89="","",(G89-Q103)*100) -> 36.36 | S103: =IF(R103="","",TRUNC(R103)) -> 36 | T103: =IF(R103="","",(R103-S103)*100) -> 36 | U103: =IF(T103="","",ROUND(T103,0)) -> 36 | V103: =IF(G89="","",Q103+S103/60+U103/3600) -> 12.61
A104: P3 | E104: =IF(OR($H$82="",C90="",N90=""),"",$H$82+N90*SIN(V90)) ->  | L104: S | M104: 真鍮製金属標 | Q104: -12 | R104: -36.36 | S104: -36 | T104: -36 | U104: -36 | V104: -12.61
A105: P4 | B105: =IF(OR(C91="",N91="",$F$82=""),"",$F$82+N91*COS(X91)) ->  | E105: =IF(OR($H$82="",C91="",N91=""),"",$H$82+N91*SIN(V91)) ->  | L105: B | M105: 金属鋲 | Q105: 9 | R105: 36.29 | S105: 36 | T105: 29 | U105: 29 | V105: 9.608055556
A106: P5 | L106: P | M106: プレート板
A107: P6 | L107: T | M107: 木杭
A108: P7 | L108: K | M108: 刻み
A109: P8
A110: P9
A111: P10 | M111: =座標入力!$J$3 -> C04O05K05U00DS1 | O111: =O37 -> 座標入力使用者に名前入力
